Workbook

Sheet Index
A1: Sheet | B1: INDEX | F1: Technology Data for Energy storage
A2: 2 | B2: 140 PTES seasonal | F2: All cost data is in 2015€
A3: 3 | B3: 141 Large hot water tank
A4: 4 | B4: 150 Underground Storage of Gas
A5: 5 | B5: 151 Hydrogen Storage
A6: 6 | B6: 160 Pumped hydro storage
A7: 7 | B7: 161 CAES
A8: 8 | B8: 162 Flywheels
A9: 9 | B9: 180 Lithium Ion Battery
A10: 10 | B10: 181 Vanadium Redox Flow Battery
A11: 11 | B11: 182 Na-S Battery
A12: 12 | B12: 183 Na-NiCl2 Battery

Sheet 140 PTES seasonal
B1: Technology | C1: Storage technologies | H1: Back to Index
B3: Technology | C3: Pit Thermal Energy Storage (PTES)
C4: 2015 | D4: 2020 | E4: 2030 | F4: 2040 | G4: 2050 | H4: Uncertainty (2020) | J4: Uncertainty (2050) | L4: Note | M4: Ref
B5: Energy/technical data | H5: Lower | I5: Upper | J5: Lower | K5: Upper
B6: Form of energy stored | C6: Heat
B7: Application | C7: System
B8: Energy storage capacity for one unit (MWh) | C8: =MROUND(C33*(C35-C36)/860,500) -> 4500 | D8: =MROUND(D33*(D35-D36)/860,500) -> 4500 | E8: 4500 | F8: 4500 | G8: 4500 | H8: 4500 | I8: 4500 | J8: 4500 | K8: 4500
B9: Output capacity for one unit (MW) | C9: 30 | D9: 30 | E9: 30 | F9: 30 | G9: 30 | H9: 30 | I9: 30 | J9: 30 | K9: 30 | L9: A | M9: 5
B10: Input capacity for one unit (MW) | C10: 30 | D10: 30 | E10: 30 | F10: 30 | G10: 30 | H10: 30 | I10: 30 | J10: 30 | K10: 30 | L10: A | M10: 5
B11: Round trip efficiency (%) | C11: 70 | D11: 70 | E11: 70 | F11: 70 | G11: 70 | H11: 60 | I11: 80 | J11: 60 | K11: 80 | L11: B | M11: 1, 5, 14
B12: - Charge efficiency (%) | C12: 100 | D12: 100 | E12: 100 | F12: 100 | G12: 100 | H12: 100 | I12: 100 | J12: 100 | K12: 100 | L12: B
B13: - Discharge efficiency (%) | C13: 100 | D13: 100 | E13: 100 | F13: 100 | G13: 100 | H13: 100 | I13: 100 | J13: 100 | K13: 100 | L13: B
B14: Energy losses during storage (K / day) | C14: 0.08 | D14: 0.08 | E14: 0.08 | F14: 0.08 | G14: 0.08 | H14: 0.04 | I14: 0.1 | J14: 0.04 | K14: 0.1 | L14: B | M14: 12
B15: Auxiliary electricity consumption (% of output) | C15: 2 | D15: 2 | E15: 2 | F15: 2 | G15: 2 | H15: 2 | I15: 2 | J15: 2 | K15: 2 | L15: C | M15: 5
B16: Forced outage (%) | C16: 0 | D16: 0 | E16: 0 | F16: 0 | G16: 0 | H16: 0 | I16: 0 | J16: 0 | K16: 0
B17: Planned outage (weeks per year) | C17: 1 | D17: 1 | E17: 1 | F17: 1 | G17: 1 | H17: 1 | I17: 1 | J17: 1 | K17: 1
B18: Technical lifetime (years) | C18: 20 | D18: 20 | E18: 25 | F18: 25 | G18: 25 | H18: 15 | I18: 25 | J18: 20 | K18: 30 | L18: D
B19: Construction time (years) | C19: 1 | D19: 1 | E19: 1 | F19: 1 | G19: 1 | H19: 1 | I19: 1 | J19: 1 | K19: 1 | L19: E
B21: Regulation ability
B22: Primary regulation (% per 30 sec)
B23: Secondary regulation (% per minute)
B25: Financial data
B26: Specific investment (M€2015 / GWhCapacity) | C26: =(0.0000244*C33+0.9)/(C8/1000) -> 0.5795555556 | D26: =(0.0000244*D33+0.9)/(D8/1000) -> 0.5795555556 | E26: =(0.000035*E33)/(E8/1000) -> 0.5444444444 | F26: =(E26+G26)/2 -> 0.5055555556 | G26: =(0.00003*G33)/(G8/1000) -> 0.4666666667 | H26: =(0.00003*H33)/(D8/1000) -> 0.4666666667 | I26: =(0.00004*I33)/(E8/1000) -> 0.6222222222 | J26: =(0.000025*J33)/(J8/1000) -> 0.3888888889 | K26: =(0.000035*K33)/(K8/1000) -> 0.5444444444 | L26: F | M26: 5
B27: - hereof equipment (%) | C27: 75 | D27: 75 | E27: 75 | F27: 75 | G27: 75 | H27: 75 | I27: 75 | J27: 75 | K27: 75 | M27: 5
B28: - hereof installation (%) | C28: 25 | D28: 25 | E28: 25 | F28: 25 | G28: 25 | H28: 25 | I28: 25 | J28: 25 | K28: 25 | M28: 5
B29: Fixed O&M (€2015/MWhCapacity/year) | C29: 3 | D29: 3 | E29: 3 | F29: 3 | G29: 3 | H29: 3 | I29: 3 | J29: 3 | K29: 3 | L29: G | M29: 1, 5
B30: Variable O&M (€2015/MWhoutput) | C30: 0 | D30: 0 | E30: 0 | F30: 0 | G30: 0 | H30: 0 | I30: 0 | J30: 0 | K30: 0 | L30: G | M30: 1, 5
B32: Technology specific data
B33: Storage volume for one unit (m3) | C33: 70000 | D33: =C33 -> 70000 | E33: =D33 -> 70000 | F33: 70000 | G33: =E33 -> 70000 | H33: 70000 | I33: 70000 | J33: 70000 | K33: 70000
B34: Storage medium | C34: Water
B35: Max. storage temperature, hot(⁰C) | C35: 90 | D35: 90 | E35: 90 | F35: 90 | G35: 90 | H35: 90 | I35: 90 | J35: 90 | K35: 90
B36: Storage temperature, discharged (⁰C) | C36: 35 | D36: 35 | E36: 35 | F36: 35 | G36: 35 | H36: 35 | I36: 35 | J36: 35 | K36: 35 | L36: H
A38: Notes:
A39: A | B39: The charge/discharge capacity corresponds to an example where a solar fraction of 40 % was desired. Other input/output capacities (also relative to storage capacity) may occur for other purposes. Measurements from SUNSTORE 3 show approx. 80 % efficiency for a storage with heat pump.
A40: B | B40: Values in the table are without a heat pump. The storage loss depends on several parameters, such as store volume, insulation, whether a heat pump is part of the system etc. Round trip efficiency of approx. 80 % when applying a heat pump for cooling to 10°C. (Dis-)charge losses 0 cf. Direct use of water from the connected district heating grid (without exchanger). Losses are dependent on the temperature of the storage. 0.08 K/day at average temperature of approx. 78°C, falling to 0.04 K/day at 56°C.
A41: C | B41: Approx. 100 MWh/year for pumps, at 2,000 fullload hours for the pumps, considering one full cycle
A42: D | B42: Current max. Technical lifetime for liners.
A43: E | B43: Excl. Extensive planning phase with possibly Environmental Impact Assessment etc. Careful timing of steps is mandatory, as the steps of excavation, building, installation of liners etc. Can be done within one summer. If not, the construction time expands to approx. 2 years.
A44: F | B44: Estimated from the cost of the 7 Danish plants, described in the text and due to effects of economy of scale, the total costs of a PTES in 2015 could be described in a formula: Cost [M€] = 0.9 + 2.44*10-5*V , with V being the volume in m3 . Corresponding to 37€/m3 at 70,000 m3 and 0.58 M€ per GWhCapacity. The costs are based on decent soil conditions, i.e. sand ground and not e.g. heavy clay. The costs can be split as follows: 15 % Excavation and reinstallation of soil 35 % Buttom and side surfaces & insulation material 20 % Installation (of primarily liner) 15 % Piping 15 % Water (incl. desalination)
A45: G | B45: The Fixed O&M is set according to capacity of the Energy Storage specified in the top of the table. Corresponding to approx. 13,000 €/storage/year for e.g. divers for inspection, adding of possible leakages and minor fixes.
A46: H | B46: Cooling to lower temperatures is only possible when a heat pump is used to chill the PTES.
A47: I | B47: Total efficiency during a one year cycle, including losses during storage period.
A48: References
A49: 1 | B49: PlanEnergi, Teknologisk Institut, GEO & Grøn Energi, 2013, Udredning vedrørende varmelagringsteknologier og store varmepumper til brug i fjernvarmesystemer
A50: 5 | B50: PlanEnergi 2017, based on latest three projects and tender material for two planned PTES (2017/18)
A51: 12 | B51: Danish Energy Agency, 1988, Energy Technology Catalogue 38.01
A52: 14 | B52: Schmidt, Sørensen (2018). Monitoring Results from Large Scale Heat storages for District Heating in Denmark. 14th International Conference on Energy Storage, 25-28 April 2018, Adana, Turkey

Sheet 141 Large hot water tank
B1: Technology | C1: Storage technologies | H1: Back to Index
B3: Technology | C3: Large-Scale Hot Water Tanks (steel)
C4: 2015 | D4: 2020 | E4: 2030 | F4: 2040 | G4: 2050 | H4: Uncertainty (2020) | J4: Uncertainty (2050) | L4: Note | M4: Ref
B5: Energy/technical data | H5: Lower | I5: Upper | J5: Lower | K5: Upper
B6: Form of energy stored | C6: Heat
B7: Application | C7: System
B8: Energy storage capacity for one unit (MWh) | C8: =MROUND(C34*C33/860*0.9,5) -> 175 | D8: =MROUND(D34*D33/860*0.9,5) -> 175 | E8: 175 | F8: 175 | G8: 175 | H8: =MROUND(H34*H33/860*0.9,5) -> 45 | I8: =MROUND(I34*I33/860*0.9,5) -> 315 | J8: =MROUND(J34*J33/860*0.9,5) -> 45 | K8: =MROUND(K34*K33/860*0.9,5) -> 315 | L8: A
B9: Output capacity for one unit (MW) | C9: =MROUND(C8/60,0.1) -> 2.9 | D9: =MROUND(D8/60,0.1) -> 2.9 | E9: 2.9 | F9: 2.9 | G9: 2.9 | H9: =MROUND(H8/60,0.1) -> 0.8 | I9: =MROUND(I8/60,0.1) -> 5.3 | J9: =MROUND(J8/60,0.1) -> 0.8 | K9: =MROUND(K8/60,0.1) -> 5.3 | L9: B | M9: 7
B10: Input capacity for one unit (MW) | C10: =C9 -> 2.9 | D10: =D9 -> 2.9 | E10: 2.9 | F10: 2.9 | G10: 2.9 | H10: 0.8 | I10: =I9 -> 5.3 | J10: 0.8 | K10: =K9 -> 5.3 | L10: B | M10: 7
B11: Round trip efficiency (%) | C11: 98 | D11: 98 | E11: 98 | F11: 98 | G11: 98 | H11: 96 | I11: 99 | J11: 96 | K11: 99 | L11: J | M11: 2
B12: - Charge efficiency (%) | C12: 100 | D12: 100 | E12: 100 | F12: 100 | G12: 100 | H12: 100 | I12: 100 | J12: 100 | K12: 100 | L12: C
B13: - Discharge efficiency (%) | C13: 100 | D13: 100 | E13: 100 | F13: 100 | G13: 100 | H13: 100 | I13: 100 | J13: 100 | K13: 100
B14: Energy losses during storage (% / day) | C14: =1.3/7 -> 0.1857142857 | D14: =1.3/7 -> 0.1857142857 | E14: 0.1857142857 | F14: 0.1857142857 | G14: 0.1857142857 | H14: =1/7 -> 0.1428571429 | I14: =1.7/7 -> 0.2428571429 | J14: =1/7 -> 0.1428571429 | K14: =1.7/7 -> 0.2428571429 | M14: 2
B15: Auxiliary electricity consumption (% of output) | C15: 1 | D15: 1 | E15: 1 | F15: 1 | G15: 1 | H15: 0 | I15: 1 | J15: 0 | K15: 1 | L15: D | M15: 7
B16: Forced outage (%) | C16: 0 | D16: 0 | E16: 0 | F16: 0 | G16: 0 | H16: 0 | I16: 3 | J16: 0 | K16: 3 | M16: 7
B17: Planned outage (weeks per year) | C17: 1 | D17: 1 | E17: 1 | F17: 1 | G17: 1 | H17: 0 | I17: 4 | J17: 0 | K17: 4 | L17: E | M17: 7
B18: Technical lifetime (years) | C18: 40 | D18: 40 | E18: 40 | F18: 40 | G18: 40 | H18: 30 | I18: 50 | J18: 30 | K18: 50 | L18: F | M18: 2
B19: Construction time (years) | C19: 0.5 | D19: 0.5 | E19: 0.5 | F19: 0.5 | G19: 0.5 | H19: 0.5 | I19: 1 | J19: 0.5 | K19: 1 | L19: G | M19: 7
B21: Regulation ability
B22: Primary regulation (% per 30 sec)
B23: Secondary regulation (% per minute)
B25: Financial data
B26: Specific investment (M€2015 / GWhCapacity) | C26: =7450*C33^-0.47*C33/1000000/(C8/1000) -> 2.964780114 | D26: =7450*D33^-0.47*D33/1000000/(D8/1000) -> 2.964780114 | E26: 2.964780114 | F26: 2.964780114 | G26: 2.964780114 | H26: =7450*I33^-0.47*I33/1000000/(I8/1000) -> 2.159234552 | I26: =7450*H33^-0.47*H33/1000000/(H8/1000) -> 7.984948626 | J26: =7450*K33^-0.47*K33/1000000/(K8/1000) -> 2.159234552 | K26: =7450*J33^-0.47*J33/1000000/(J8/1000) -> 7.984948626 | L26: H | M26: 2, 7
B27: - hereof equipment (%) | C27: 70 | D27: 70 | E27: 70 | F27: 70 | G27: 70 | H27: 70 | I27: 70 | J27: 70 | K27: 70 | M27: 7
B28: - hereof installation (%) | C28: 30 | D28: 30 | E28: 30 | F28: 30 | G28: 30 | H28: 30 | I28: 30 | J28: 30 | K28: 30 | M28: 7
B29: Fixed O&M (€2015/MWhCapacity/year) | C29: 8.6 | D29: 8.6 | E29: 8.6 | F29: 8.6 | G29: 8.6 | H29: =1500/I8 -> 4.761904762 | I29: =1500/H8 -> 33.33333333 | J29: =1500/K8 -> 4.761904762 | K29: =1500/J8 -> 33.33333333 | L29: E | M29: 7
B30: Variable O&M (€2015/MWhoutput) | C30: 0 | D30: 0 | E30: 0 | F30: 0 | G30: 0 | H30: 0 | I30: 0 | J30: 0 | K30: 0 | L30: I | M30: 7
B32: Technology specific data
B33: Tank volume of example (m3) | C33: 3000 | D33: 3000 | E33: 3000 | F33: 3000 | G33: 3000 | H33: 1500 | I33: 5000 | J33: 1500 | K33: 5000
B34: Typical temperature difference in storage (hot/cold, K) | C34: 55 | D34: 55 | E34: 55 | F34: 55 | G34: 55 | H34: 30 | I34: 60 | J34: 30 | K34: 60
A36: Notes:
A37: A | B37: Considering a temperature difference of 55K (hot/cold), 90% availability.
A38: B | B38: Considering a full charging cycle of 60 hours (2.5 days), cf. traditional application of steel tanks in Danish DH-plants. The capacity is practically limited by the available pipe dimensions for charge/discharge and the number of installed valves in the tank (in order to increase flow at same low turbulence).
A39: C | B39: As tanks are typically connected directly to the district heating supply/return hydraulic system, there is no loss due to the dis-/charging.
A40: D | B40: Less than 1 % of the stored energy for circulation pumps and N2-production.
A41: E | B41: The Fixed O&M is set according to capacity of the Energy Storage specified in the top of the table. Corresponding to approx. 1500 €/tank/year. Typically limited to one inspection/year using a diver, if any at all.
A42: F | B42: Primarily limited by the extent to which the system is held corrosion-free.
A43: G | B43: Installation period for approval by authorities, site preparation, welding, connection, cleansing, initial filling and insulation. Additional delivery time for steel may apply.
A44: H | B44: CAPEX for large-scale water tanks are best described in a formula, due to significant impact of economy of scale. For 2015, the following eqation is used to estimate the CAPEX in € pr. m3, based on data as presented in Figure 61.2: 7450*V*^(-0.47), V=Water Volume of tank in m3. Development in CAPEX depends primarily on the development in steel prices.
A45: I | B45: Only variable O&M is electricity consumption for pumps and N2-production as specified above.
A46: J | B46: Total efficiency during a one year cycle, including losses during storage period.
A47: References:
A48: 2 | B48: PlanEnergi, Teknologisk Institut, GEO & Grøn Energi, 2013, Udredning vedrørende varmelagringsteknologier og store varmepumper til brug i fjern-varmesystemer
A49: 7 | B49: PlanEnergi, references from various projects in Danish district heating systems.

Sheet 150 Underground Storage of Gas
B1: 150 Underground Storage of Gas | H1: Back to Index
B3: Cavern leaching
B4: Plant for cavern leaching | C4: Mill. €
B5: Total | C5: 9.857960459
B7: Establishment of one cavern, 100 million Nm3 (approx. 1.1 TWh)
C8: Mill. €
B9: Construction and equipment | C9: 22.10999703
B10: Cushion gas for one cavern (40% of total) | C10: 14.08280066
B11: Total cost, 100 mio Nm3 active volume | C11: 36.19279769
B13: Process equipment; injection 200,000 Nm3/hour (approx. 2200 MW),
B14: withdrawal 600,000 nM3/hour (approx. 6600 MW)
C15: Mill. €
B16: Construction work | C16: 2.816560131
B17: Compressors, incl. auxiliaries | C17: 30.1371934
B18: Udtrækstog | C18: 12.9561766
B19: Withdrawal equipment | C19: 4.50649621
B20: Connections, transformer, regulation, and instruments | C20: 12.67452059
B21: Total investment cost | C21: 63.09094694
B23: A new greenfield store, equivalent to Lille Torup in Denmark, would require
B24: one leaching plant, 5 caverns, and one process plant.
B25: Total investment cost | C25: =C5+C11*5+C21 -> 253.9128958 | D25: mill. €
B27: Operation and maintenace, salt cavern, 400-500 million m3 working gas
C28: Mill. € per year
B29: Electricity | C29: 0.7 - 1.1
B30: Gas consumption to reheat extracted gas | C30: 0.13
B31: Total, incl. administration | C31: 6.5

Sheet 151 Hydrogen Storage
B1: 151 Hydrogen Storage | H1: Back to Index
B3: Technology | C3: Hydrogen storage, cavern
C4: 2015 | D4: 2020 | E4: 2030 | F4: 2050 | G4: Note | H4: Ref
B5: Energy/technical data
B6: Output capacity, MW | C6: 2 | H6: 1
B7: Storage volume, MWh | C7: 10 | H7: 1
B8: Overall cycle efficiency, AC-AC (%) | C8: 35 | G8: A | H8: 1
B9: Technical lifetime (year) | C9: 30 | H9: 1
B10: Financial data
B11: Investment storage, € per kWh storage volume | C11: 11 | G11: A+B+C | H11: 1
B12: Investment converter, € per kW output capacity | C12: 3000 | G12: A+B+C | H12: 1
B13: Fixed O&M (€/MW/year)
B14: Variable O&M (€/MWh)
A16: References:
A17: 1 | B17: “Economical and technical evaluation of energy storage systems”, presentation by J. Oberschmidt & M. Klobasa, Fraunhofer Institut, at the “Third International Renewable Energy Storage Conference (IRES 2008)”, Berlin, November 2008
A18: Notes:
A19: A | B19: System: PEM electrolysis, storage of hydrogen at 30 bar, and a gas engine to convert back to AC.
A20: B | B20: The two investment components shall be added, cf. paragraph 1.3 in the introductive chapter.
A21: C | B21: Cost data are the same as in the 2010 catalogue, however inflated from price level 2008 to 2011 by multiplying with a general inflation factor 1.053

Sheet 160 Pumped hydro storage
B1: 160 Pumped Hydro Storage | H1: Back to Index
B3: Technology | C3: Pumped hydro storage
C4: 2015 | D4: 2020 | E4: 2030 | F4: 2050 | G4: Note | H4: Ref
B5: Energy/technical data
B6: Generating capacity for one unit (MW) | C6: 10-1000 | D6: 10-1000 | E6: 10-1000 | F6: 10-1000 | G6: A | H6: 2
B7: Total efficiency (%) net | C7: 70 - 80 | D7: 70 - 80 | E7: 70 - 80 | F7: 70 - 80 | G7: A | H7: 1
B8: Technical lifetime (years) | C8: 50 | D8: 50 | E8: 50 | F8: 50 | G8: A | H8: 1
B9: Construction time (years) | C9: 2-3 | D9: 2-3 | E9: 2-3 | F9: 2-3 | G9: A
B10: Financial data
B11: Investment, pump part (M€/MW) | C11: 0.6 | D11: 0.6 | E11: 0.6 | F11: 0.6 | G11: B;C;A | H11: 1&2
B12: Investment, total, greenfield plant (M€/MW) | C12: < 4 | D12: < 4 | E12: < 4 | F12: < 4 | G12: D;A | H12: 4
B13: Fixed O&M (€/MW/year) - 1-2% of investment | C13: 6-12,000 | D13: 6-12,000 | E13: 6-12,000 | F13: 6-12,000 | G13: B;A | H13: 3
B14: Variable O&M (€/MWh) | C14: Depends on power price
A16: References:
A17: 1 | B17: BKK, presentation on Nygard Pumpekraftverk
A18: 2 | B18: Tonstad Pumpekraftverk, Sira-Kvina kraftselskap, 2002
A19: 3 | B19: BKK and Sira-Kvina
A20: 4 | B20: “Energy technology perspectives 2008”, International Energy Agency, 2008.
A21: Notes:
A22: A | B22: No significant technology advance or cost decrease is expected, since hydropower and water pumping are established technologies.
A23: B | B23: Based on the September 2004 exchange rate of 1NOK = 0,12€
A24: C | B24: Cost data are the same as in the 2005 catalogue, however inflated from price level 2002 to 2011 by multiplying with a general inflation factor 1.2306
A25: D | B25: Cf. paragraph 'Additional remarks' above.

Sheet 161 CAES
B1: 161 Compressed Air Energy Storage | H1: Back to Index
D3: Compressed Air Energy Storage
C4: 2015 | D4: 2020 | E4: 2030 | F4: 2050 | G4: Uncertainty (2020) | I4: Uncertainty (2050) | K4: Note | L4: Ref
B6: Energy/technical data | G6: Lower | H6: Upper | I6: Lower | J6: Upper
B7: Form of energy stored | C7: Electricity to mechanical and heat
B8: Application | C8: System, energy-intensive
B9: Energy storage capacity for one unit (MWh) | C9: 3000 | D9: 3000 | E9: 3000 | F9: 3000 | G9: - | H9: - | I9: 3000 | J9: 10000 | K9: I | L9: [3]
B10: Output capacity for one unit (MW) | C10: 300 | D10: 300 | E10: 300 | F10: 300 | G10: - | H10: - | I10: 300 | J10: 500 | K10: I, J | L10: [3]
B11: Input capacity for one unit (MW) | C11: 60 | D11: 60 | E11: 60 | F11: 60 | G11: - | H11: - | I11: 60 | J11: 80 | K11: I, J | L11: [9]
B12: Round trip efficiency (%) | C12: 55 | D12: 60 | E12: 70 | F12: 72 | G12: 55 | H12: 55 | I12: 64 | J12: 72 | K12: A, B | L12: [9] [26]
B13: - Charge efficiency (%) | C13: 80 | D13: 80 | E13: 84 | F13: 85 | G13: 80 | H13: 80 | I13: 80 | J13: 85 | L13: [7]
B14: - Discharge efficiency (%) | C14: 69 | D14: 80 | E14: 84 | F14: 85 | G14: 69 | H14: 69 | I14: 80 | J14: 85 | L14: [7]
B15: Energy losses during storage (%/period) | C15: Close to 0 | D15: 0 | E15: 0 | F15: 0 | G15: 0 | H15: 0 | I15: 0 | J15: 0 | L15: [27]
B16: Auxiliary electricity consumption (% of output) | C16: - | D16: - | E16: - | F16: -
B17: Forced outage (%) | C17: 5 | D17: 5 | E17: 4 | F17: 4 | G17: - | H17: - | I17: 2 | J17: 4 | K17: I, K | L17: [9]
B18: Planned outage (weeks per year) | C18: 5 | D18: 5 | E18: 4 | F18: 3 | G18: - | H18: - | I18: 2 | J18: 3 | K18: I, K | L18: [9]
B19: Technical lifetime (years) | C19: 40 | D19: 40 | E19: 40 | F19: 40 | G19: 35 | H19: 45 | I19: 35 | J19: 45 | L19: [20] [8]
B20: Construction time (years) | C20: <3 | D20: <3 | E20: <3 | F20: <3 | G20: 2 | H20: 3 | I20: 2 | J20: 3 | L20: [8]
B22: Regulation ability
B24: Idle to full discharge (sec) | C24: 700 | D24: 700 | E24: 1000 | F24: 1000 | G24: 500 | H24: 1000 | I24: 800 | J24: 1200 | K24: D, G | L24: [3], [8]
B25: Full charge to full discharge (sec) | C25: - | D25: - | E25: - | F25: - | K25: F
B27: Financial data
B28: Specific investment (M€2015 per MWh) | C28: 0.65 | D28: 0.65 | E28: 1 | F28: 0.8 | G28: 0.3 | H28: 1.2 | I28: 0.4 | J28: 2 | K28: C, E | L28: Table 3 [26]
B29: -Energy component (M€/MWh) | C29: 0.002 | D29: 0.002 | E29: 0.002 | F29: 0.002 | G29: 0.002 | H29: 0.01 | I29: 0.002 | J29: 0.01 | K29: H | L29: [23]
B30: -Capacity component (M€/MW) | C30: 0.6 | D30: 0.6 | E30: 0.9 | F30: 0.9 | G30: 0.3 | H30: 1.2 | I30: 0.3 | J30: 1.2 | L30: [24]
B31: -Other project costs (M€/MWh) | C31: 0.085 | D31: 0.085 | E31: 0.085 | F31: 0.085 | G31: 0.08 | H31: 0.09 | I31: 0.08 | J31: 0.09 | L31: [24]
B32: Fixed O&M (€2016/MW/year) | C32: 2460 | D32: 2460 | E32: 2460 | F32: 2460 | G32: 2000 | H32: 4000 | I32: 2000 | J32: 4000 | L32: [20]
B33: Variable O&M (€2016/MWh) | C33: 2.46 | D33: 2.46 | E33: 2.46 | F33: 2.46 | G33: 2 | H33: 3 | I33: 2 | J33: 3 | L33: [20]
B35: Technology specific data
B36: Specific investment ((€2016/kW) | C36: 640 | D36: 640 | E36: 640 | F36: 640 | G36: - | H36: - | I36: 550 | J36: 640 | K36: C, K | L36: Table 3
A38: Notes
A39: A | B39: For efficiency it is assumed that that new CAES plants can be constructed with at least the same efficiency as the McIntosh plant.
A40: B | B40: The use of gas in a CAES plant is assumed at the same efficiency as the average use of chemical fuels in the Danish electricity system, i.e. 35% in 2014
A41: C | B41: In general it is assumed that at some point between 2020 and 2030 adiabatic CAES plants will dominate the market. This means that investment costs will increase and performance characteristics will improve.
A42: D | B42: The obtainable ramping rate is likely to decrease after application of thermal energy storage. This is because the heat must be delivered to the storage material, which is a process that cannot be controlled independently.
A43: E | B43: For the costs per kWh in Table 3 the data lying between 0 and 2 EUR/kWh have been disregarded because it is assumed, that only storage costs are included
A44: F | B44: Operation not suitable nor relevant for CAES. Data not available.
A45: G | B45: If a CAES plant is operated as a hot spinning reserve, it can reach the maximum capacity within a few minutes. The emergency startup times from cold conditions at the Huntorf and McIntosh plants are about 5 minutes. Their normal startup times are about 10 to 12 minutes [8]
A46: H | B46: Energy component here taken as the cavern excavating
A47: I | B47: New plants cannot be realized in 2020 because of lead time. Furthermore the upper limit for storage capacity of one unit is determined by cavern volume, which can be obtained practically without.
A48: J | B48: Upper limit in 2050 is based on the author´s assessment of technological development until then.
A49: K | B49: Lower limit in 2050 is based on the author´s assessment of technological development until then.
A51: References
A52: 1 | B52: S. Karellas and N. Tzouganatos, "Comparison of the performance of compressed-air and hydrogen," vol. 29, 2014.
A53: 2 | B53: E. Barbour, "http://energystoragesense.com/compressed-air-energy-storage/," [Online].
A54: 3 | B54: S. Zunft, S. Freund and E. M. Schlichtenmayer, "Large Scale Electricity Storage with Adiabatic CAES," Paris, November 2014.
A55: 4 | B55: "Geological storage in Northern Ireland," Geological Survay of Northern Ireland. [Online].
A56: 5 | B56: P. Johnson, "ASSESSMENT OF COMPRESSED AIR ENERGY STORAGE SYSTEM (CAES)," Thesis Submitted to the University of Tennessee, University of Tennessee at Chattanooga, Chattanooga, Tenessee, USA, 2014.
A57: 6 | B57: R. W. S. Succar, "Compressed Air Energy Storage: Theory, Resources, And Applications For Wind Power," Energy Systems Analysis Group, Princeton Environmental Institute, Princeton University, April 2008.
A58: 7 | B58: J. W. X. Luo, "Overview on current development on Compressed Air Energy Storage, EERA Technical Report – CAES.," School of engineering, University of Warwick. Available on http://integratedenergystorage.org/. Accessed February 2017, December 2013.
A59: 8 | B59: I. Gyuk and S. Eckroad, "EPRI-DOE Hanbook of Energy Storage for Transmission and Distribution Applications,1001834, Final Report," EPRI and DOE, December 2003.
A60: 9 | B60: Nakhamkin and Brotel, "Second generation compressed air storage," in Energy Storage Forum Europe, Rome, 2012.
A61: 10 | B61: F. Crotogino, K.-U. Mohmeyer and R. Scharf, "Huntorf CAES / More than 20 yeasr of successful operation," Orlando, April 2001.
A62: 11 | B62: "https://dddusmma.wordpress.com/2014/05/30/storage-is-essential-for-wind-and-solar/," Department of Energy, USA. [Online]. [Accessed 2017].
A63: 12 | B63: "https://dddusmma.wordpress.com/2015/03/17/the-quest-for-storing-electricity/," 17 March 2015. [Online]. [Accessed 2017].
A64: 13 | B64: A. Wänn, P. Leahy, M. Reidy, S. Doyle, H. Dalton and P. Barr, "Environmental performance of existing energy storage installations. Deliverable D.3.1. Available on www.store-project.eu. Accessed February 2017," stoRE project, 2012.
A65: 14 | B65: E. Bouman, M. M. Øberg and E. G. Hertwich, "LIFE CYCLE ASSESSMENT OF COMPRESSED AIR ENERGY STORAGE (CAES)," Gothenburg, 2013.
A66: 15 | B66: "ADELE – ADIABATIC COMPRESSED-AIR ENERGY STORAGE FOR ELECTRICITY SUPPLY. RWE Brochure.," RWE Power AG, Cologne, 2010.
A67: 16 | B67: "Energy Storage Technology Roadmap, Technology Annex, p. 5," International Energy Agency, March 2014.
A68: 17 | B68: Gaelectric. Accesses February 2017. [Online].
A69: 18 | B69: "Gaelectric energy storage: The missing link. Brochure by Gaelectric. Availble on http://www.gaelectric.ie/energy-storage-publications/. Accessed February 2017," Gaelectric.
A70: 19 | B70: [Online].
A71: 20 | B71: D.Rastler, A. Akhil and D. Gauntlett, "Energy Storage System Costs 2011 update. Excecutive summary.," 2011.
A72: 21 | B72: "InflationData.com," InflationData, 2017. [Online]. [Accessed March 2017].
A73: 22 | B73: E. Drury, P. Denholm and R. Sioshansi, "The Value of Compressed Air Energy Storage in Energy and Reserve Markets," National Renewable Energy Laboratory, USA, 2009.
A74: 23 | B74: "Handbook for Energy Storage for Transmission or Distribution Applications. Report No. 1007189. Technical Update December 2002. Document can be found at: www.epri.com," EPRI, 2002.
A75: 24 | B75: "COST AND PERFORMANCE DATA FOR POWER GENERATION TECHNOLOGIES, Report prepared for the National Renewable Energy Laboratory, Avaliable on https://www.bv.com/docs/reports-studies/nrel-cost-report.pdf (Accessed February 2017)," Black & Veatch, 2012.
A76: 25 | B76: B. McGrail, "Techno-economic Performance Evaluation of Compressed Air Energy Storage in the Pacific Northwest. Available on http://caes.pnnl.gov/pdf/PNNL-22235.pdf. Accessed February 2017," Pacific Northwes National Laboratory (operated by Batelle), 2013.
A77: 26 | B77: "Materials Roadmap Enabling Low Carbon Energy Technologies, Commission Staff Working Paper," European Commission, Brussels, 2011.
A78: 27 | B78: A. Bary, "Storing natural gas underground. Available on https://www.slb.com/~/media/Files/resources/oilfield_review/ors02/sum02/p2_17.pdf (Accessed February 2017)," Oilfield review, 2002.
A79: 28 | B79: A. Cavallo, "Controllable and affordable utility-scale electricity from intermittent wind resources and compressed air energy storage (CAES)," vol. 32, pp. 120-127, 2007.
A80: 29 | B80: J. T. Dasand, "Compressed Air Energy Storage (Educational Chapter)," Iowa state University, 2012.
A81: 30 | B81: E. M. G.Locatellia, "Assessing the economics of large Energy Storage Plants with an optimisation methodology," vol. 83, April 2015.
A82: 31 | B82: "Energy Storage News," Energy Storage News, 2016. [Online].
A83: 32 | B83: P. Tayler, "Pathways for Energy Storage in the UK, Report 007," The Centre for Low Carbon Futures, March 2012.
A84: 33 | B84: H. Lund and G. Salgi, "The role of compressed air energy storage (CAES) in future sustainable energy systems," vol. 50, pp. 1172-1179, 2009.
A85: 34 | B85: M. Nakhamkin, M. Chiruvolu and C. Daniel, "Available Compressed Air Energy Storage (CAES) Plant Concepts. Available on http://www.espcinc.com/library/PowerGen_2007_paper.pdf. Accessed February 2017," ESPC and Towngas International Company, 2007.
A86: 35 | B86: J. Simmons, "Study of Compressed Air Energy Storage with Grid and Photovoltaic Energy Generation," The Arizona Research Institute for Solar Energy (AzRISE) - APS Final Draft Report., University of Arizona, 2010.

Sheet 162 Flywheels
H1: Back to Index
B3: 162 Flywheels
B5: Technology | D5: Flywheels
C6: 2018 | D6: 2020 | E6: 2030 | F6: 2050 | G6: Uncertainty (2020) | I6: Uncertainty | K6: Note | L6: Ref
I7: -2050
B8: Energy/technical data | G8: Lower | H8: Upper | I8: Lower | J8: Upper
B9: Form of energy stored | C9: Electro-mechanical energy
B10: Application | C10: Short and medium term grid services
B11: Energy storage capacity for one unit (MWh) | C11: 0.1 | D11: 0.1 | E11: 0.1 | F11: 0.1 | G11: 0.1 | H11: 0.1 | I11: 0.1 | J11: 0.15 | K11: A, F, M
B12: Output capacity for one unit (MW)* | C12: 1 | D12: 1 | E12: 1 | F12: 1 | G12: 1 | H12: 1 | I12: 1 | J12: 1.5 | K12: A, F, M
B13: Input capacity for one unit (MW)* | C13: 1 | D13: 1 | E13: 1 | F13: 1 | G13: 1 | H13: 1 | I13: 1 | J13: 1.5 | K13: A, F, M
B14: Round trip efficiency (%) | C14: 98 | D14: 98 | E14: 98 | F14: 98 | G14: 98 | H14: 99 | I14: 98 | J14: 99 | K14: G, M
B15: - Charge efficiency (%) | C15: 99 | D15: 99 | E15: 99 | F15: 99 | G15: 99 | H15: 99.5 | I15: 99 | J15: 99.5 | K15: G, M
B16: - Discharge efficiency (%) | C16: 99 | D16: 99 | E16: 99 | F16: 99 | G16: 99 | H16: 99.5 | I16: 99 | J16: 99.5 | K16: G, M
B17: Energy losses during storage (%/day) | C17: 5 | D17: 3 | E17: 1 | F17: 1 | G17: 2 | H17: 5 | I17: 0.5 | J17: 1.5 | K17: H | L17: [16]
B18: Auxiliary electricity consumption (% of output) | C18: 0 | K18: C
B19: Forced outage (%) | C19: 0 | L19: [17]
B20: Planned outage (weeks per year) | C20: 0
B21: Technical lifetime (years) | C21: 20 | D21: 20 | E21: 25 | F21: 25 | G21: 20 | H21: 25 | I21: 20 | J21: 25 | K21: B, M | L21: [17]
B22: Construction time (years) | C22: 0.5 | D22: 0.25 | E22: 0.25 | F22: 0.25 | G22: 0.25 | H22: 0.25 | I22: 0.25 | J22: 0.25 | K22: A, M
B24: Regulation ability
B25: Response time from idle to full-rated discharge (sec) | C25: 0.003 | D25: 0.003 | E25: 0.003 | F25: 0.003 | G25: 0.003 | H25: 0.003 | I25: 0.003 | J25: 0.003 | K25: D, M
B26: Response time from full-rated charge to full-rated discharge (sec) | C26: 0.003 | D26: 0.003 | E26: 0.003 | F26: 0.003 | G26: 0.003 | H26: 0.003 | I26: 0.003 | J26: 0.003 | K26: D, M
B28: Financial data
B29: Specific investment (M€2015 per MWh) | C29: 1 | D29: 0.335 | E29: 0.335 | F29: 0.335 | G29: 0.3 | H29: 0.36 | I29: 0.3 | J29: 0.36 | K29: E, J, L | L29: [18]
B30: - energy component (M€2015 per MWh) | C30: 1 | D30: 0.33 | E30: 0.33 | F30: 0.33 | G30: 0.3 | H30: 0.36 | I30: 0.3 | J30: 0.36 | K30: D
C31: 0
B32: - capacity component (M€2015 per MW) | C32: 0.1 | D32: 0.1 | E32: 0.1 | F32: 0.1 | G32: 0.1 | H32: 0.1 | I32: 0.09 | J32: 0.1 | K32: D
B33: Fixed O&M (€2015/MW/year) | C33: 750 | D33: 750 | E33: 750 | F33: 750 | G33: 750 | H33: 750 | I33: 750 | J33: 750 | K33: D, M
B34: Variable O&M (€2015/MWh) | K34: I | L34: [7]
B36: Technology specific data
B37: Specific investment (M€2015/MW) | C37: 0.164 | D37: 0.145 | E37: 0.136 | F37: 0.131 | G37: 0.14 | H37: 0.15 | I37: 0.13 | J37: 0.14 | K37: A | L37: [18]
B38: Specific energy (Wh/kg) | C38: 115 | D38: 350 | E38: 350 | F38: 350 | G38: 300 | H38: 400 | I38: 350 | J38: 400 | K38: A
B39: Specific energy (Wh/l) | C39: 500 | D39: 1500 | E39: 1500 | F39: 1500 | G39: 1300 | H39: 2000 | I39: 1300 | J39: 2000 | K39: A
B40: Cycle life | C40: 106 | D40: 106 | E40: 106 | F40: 106 | G40: 106 | H40: 107 | I40: 106 | J40: 107 | K40: A
B47: Notes
B48: A. Data informed by WattsUp Power February 2018
B49: B. +25 years on mechanics. 15 years on electronics. Informed by WattsUp Power March 2017
B50: C. 150 W during upstart procedure for 7 min informed by WattsUp Power. After upstart auxiliary power is included in round trip efficiency
B51: D. Informed by WattsUp Power February 2018
B52: E. Confer also Table 2
B53: F. Please note that the mentioned 1 MW is standard size of one unit that can be assembled to larger entities functioning as “larger units” (somewhat similar to the case of cells in batteries). The displayed financial data is for a 2 MW plant. Flywheels can be connected and provide 20 MW regulation power and several MWh of storage capacity (this size is in commercial operation cf. Figure 5 above). Higher capacities can be obtained and the price per unit decreases when several units are purchased.
B54: G. Informed by WattsUp Power February 2018
B55: H. Loss per day measured by WattsUp Power. The projected losses towards 2050 is justified by results already now obtained by NASA
B56: I. The variable costs of flywheels are not directly related to the power put in and out. The data is based on storing (and discharging) 33 MWh per day in 350 days per year. Data from WattsUp Power.
B57: J. Displayed price information is based on recent WattsUp Power sales prices for two units (each 1 MW, 100 kWh). Price for one unit of 1 MW and 100 kWh is approx. 0.1 mill EUR. If several units are purchased unit price may be lower than by purchase of two units.
B58: K. Based on plans for increasing rotational speed by a factor 3 (WattsUp Power)
B59: L. The non-flywheel costs depend on the use of the flywheel. Demanding use patterns may increase non-flywheel costs from the 5 kEUR (as included here) to 75 kEUR per MWh
B60: M. Future uncertainties based on author´s best assessment
B65: References
B66: [1] "http://www.elp.com/articles/2016/01/amber-kinetics-signs-flywheel-energy-storage-contract-with-pg-e.html," 2016. [Online]. [Accessed March 2017].
B67: [2] e. a. I. Gyuk, "Grid Energy Storage," US Department of Energy, 2013.
B68: [3] S.-i. Inage, "Prospects of Electricity Storage in Decarbonised Power Grids, IEA Working Paper Series," OECD/IEA, 2009.
B69: [4] "Toshiba Leading Innovation," Toshiba. [Online]. [Accessed March 2017].
B70: [5] "Fact sheet. Frequency Regulation and Flywheels," Beacon Power, 2010. Archived March 2017. Available on https://web.archive.org/web/20100331042630/http://www.beaconpower.com/files/Flywheel_FR-Fact-Sheet.pdf.
B71: [6] "http://beaconpower.com," Beacon Power. [Online]. [Accessed March 2017].
B72: [7] B. Z. a. S. Syri, "Electrical Energy Storage Systems: A comparative life cycle cost analysis," Renewable and Sustainable Energy Reviews, vol. 42, pp. 569-596, 2015.
B73: [8] I. P. ,. E. S. Gyuk, "EPRI-DOE Handbook of Energy Storage for Transmission & Distribution Applications 1001834," US Department of Energy, Washington, 2003.
B74: [9] "timesunion," Times Union, 2011. [Online]. [Accessed March 2017].
B75: [10] "Joint EASE/EERA recommendations for a European Energy Storage Technology Development Roadmap towards 2030," EASE and EERA, Brussels, 2013.
B76: [11] "Technology Roadmap, Energy Storage," International Energy Agency, Paris, 2013.
B77: [12] N. K. Kohli, "Short-Term backup power through flywheel energy storage system. Available on https://www.slideshare.net/Drnavinkumarkohli/ppt-fly-wheel-navin-kohli (Accessed March 2017)," 2012.
B78: [13] S. o. A. E. I. SAE, "https://global.ihs.com/doc_detail.cfm?rid=GS&&item_s_key=00138611," IHS Markit, 2013. [Online]. [Accessed March 2017].
B79: [14] "Electrical Energy Storage," International Electrotechnical Commission, Geneva, Switzerland, 2011.
B80: [15] 2. Private communication with WattsUp Power.
B81: [16] W. Torell, "Lifecycle C arbon Footprint Analysis of Batteries vs. Flywheels, White Paper 209," Schneider Electric, 2015.
B82: [17] W. V. H. Susan M. Schoenung, "Long- vs. Short-Term Energy Storage Technologies Analysis. A Life-Cycle Cost Study," Sandia National Laboratories, Albuquerque, New Mexico 87185 and Livermore, California 94550, 2003.
B83: [18] "Lazard´s levelized cost of storage - Version 2.0," Lazard, 2016.
B84: [19] e. a. P. Tayler, "Pathways for Energy Storage in the UK, Report 007," The Centre for Low Carbon Futures, March 2012.
B85: [20] "https://www.calnetix.com/resource/flywheels/advantages-flywheels," Calnetix. [Online]. [Accessed March 2017].
B86: [21] "http://www.climatetechwiki.org/technology/jiqweb-es-fw," [Online].
B87: [22] P. N. N. L. Daryl Brown, "Federal Technology Alert. DOE/EE-0286," Federal Energy Management Program, 2003.
B88: [23] "InflationData.com," InflationData, 2017. [Online]. [Accessed 2017].
B89: [24] "Materials Roadmap Enabling Low Carbon Energy Technologies, Commission Staff Working Paper," European Commission, Brussels, 2011.
B90: [25] "energy.gov," 2010. [Online]. [Accessed March 2017].
B91: [26] "Scientific American," Scientific American, 2011. [Online]. [Accessed March 2017].
B92: [27] e. a. M. Hedlund, "Flywheel Energy Storage for Automotive Applications," Energies, vol. 8, pp. 10636-10663, 2015.
B93: [28] 2009. [Online]. [Accessed March 2017].
B94: [29] Memoori, Smart Building Resesearch, 2017. [Online]. [Accessed MArch 2017].

Sheet 180 Lithium Ion Battery
H1: Back to Index
B3: 180 Lithium ion battery
B5: Technology | F5: Lithium-ion NMC battery (Utility-scale, Samsung SDI E3-R135)
C6: 2015 | D6: 2020 | F6: 2030 | J6: 2050 | L6: Uncertainty (2020) | P6: Uncertainty | T6: Note | V6: Ref
H7: 2040 | P7: 2050
B8: Energy/technical data | L8: Lower | N8: Upper | P8: Lower | R8: Upper
B9: Form of energy stored | D9: Electricity
B10: Application | D10: System, power- and energy-intensive
B11: Energy storage capacity for one unit (MWh) | C11: 3.2 | D11: 6 | F11: 7 | H11: 8 | J11: 8 | L11: 5 | N11: 9 | P11: 7 | R11: 12 | T11: A | V11: [2,14]
B12: Output capacity for one unit (MW) | C12: 9.6 | D12: 18 | F12: 21 | H12: 24 | J12: 24 | L12: 16 | N12: 21 | P12: 22 | R12: 28 | T12: A,B | V12: [2,14]
B13: Input capacity for one unit (MW) | C13: 1.6 | D13: 3 | F13: 3.5 | H13: 4 | J13: 4 | L13: 2.7 | N13: 3.5 | P13: 3.7 | R13: 4.7 | T13: A,B | V13: [2,14]
B14: Round trip efficiency (%) AC | C14: 91 | D14: 91 | F14: 92 | H14: 92 | J14: 92 | L14: 90 | N14: 92 | P14: 91 | R14: 94 | T14: C | V14: [3,21,22,51]
B15: Round trip efficiency (%) DC | C15: 95 | D15: 95 | F15: 96 | H15: 96 | J15: 96 | L15: 95 | N15: 96 | P15: 95 | R15: 97 | T15: C | V15: [3,21,22,51]
B16: - Charge efficiency (%) | C16: 98 | D16: 98 | F16: 98.5 | H16: 98.5 | J16: 98.5 | L16: 98 | N16: 98.5 | P16: 98 | R16: 99 | T16: D | V16: [2]
B17: - Discharge efficiency (%) | C17: 97 | D17: 97 | F17: 97.5 | H17: 97.5 | J17: 97.5 | L17: 97 | N17: 98 | P17: 97 | R17: 98 | T17: D | V17: [2]
B18: Energy losses during storage (%/day) | C18: 0.1 | D18: 0.1 | F18: 0.1 | H18: 0.1 | J18: 0.1 | L18: 0.05 | N18: 0.2 | P18: 0.05 | R18: 0.15 | T18: E | V18: [18,50,52]
B19: Forced outage (%) | C19: 0.4 | D19: 0.38 | F19: 0.35 | H19: 0.3 | J19: 0.25 | L19: 0.2 | N19: 0.5 | P19: 0.1 | R19: 0.3 | T19: F
B20: Planned outage (weeks per year) | C20: 0.2 | D20: 0.2 | F20: 0.1 | H20: 0.1 | J20: 0.1 | L20: 0.1 | N20: 0.25 | P20: 0.05 | R20: 0.2 | T20: F
B21: Technical lifetime (years) | C21: 15 | D21: 20 | F21: 25 | H21: 30 | J21: 30 | L21: 15 | N21: 25 | P21: 20 | R21: 45 | T21: G | V21: [3,5,8,14]
B22: Construction time (years) | C22: 0.25 | D22: 0.2 | F22: 0.2 | H22: 0.2 | J22: 0.2 | L22: 0.2 | N22: 0.25 | P22: 0.1 | R22: 0.25 | V22: [38]
B24: Regulation ability
B25: Response time from idle to full-rated discharge (sec) | C25: <0.08 | D25: <0.08 | F25: <0.08 | H25: <0.08 | J25: <0.08 | L25: <0.08 | N25: <0.08 | P25: <0.08 | R25: <0.08 | T25: H | V25: [53]
B26: Response time from full-rated charge to full-rated discharge (sec) | C26: <0.08 | D26: <0.08 | F26: <0.08 | H26: <0.08 | J26: <0.08 | L26: <0.08 | N26: <0.08 | P26: <0.08 | R26: <0.08 | T26: H | V26: [53]
B28: Financial data
B29: Specific investment (M€2015 per MWh) | C29: 0.708 | D29: 0.432 | F29: 0.302 | H29: 0.194 | J29: 0.135 | L29: 0.32 | N29: 0.554 | P29: 0.066 | R29: 0.305 | T29: I | V29: [44,48]
B30: - energy component (M€/MWh) | C30: 0.308 | D30: 0.132 | F30: 0.062 | H30: 0.044 | J30: 0.035 | L30: 0.07 | N30: 0.189 | P30: 0.026 | R30: 0.115 | T30: J | V30: [44]
B31: - capacity component (M€/MW) PCS | C31: 0.29 | D31: 0.27 | F31: 0.16 | H31: 0.1 | J31: 0.06 | L31: 0.24 | N31: 0.51 | P31: 0.04 | R31: 0.25 | T31: K | V31: [54–56]
B32: - other project costs (M€/MWh) | C32: 0.11 | D32: 0.1 | F32: 0.08 | H32: 0.05 | J32: 0.04 | L32: 0.09 | N32: 0.11 | P32: 0.02 | R32: 0.11 | T32: L | V32: [22,40,54]
B33: Fixed O&M (k€2015/MW/year) | C33: 0.54 | D33: 0.54 | F33: 0.54 | H33: 0.54 | J33: 0.54 | L33: 0.45 | N33: 0.54 | P33: 0.4 | R33: 0.54 | T33: M | V33: [22]
B34: Variable O&M (€2015/MWh) | C34: 2.1 | D34: 2 | F34: 1.8 | H34: 1.7 | J34: 1.6 | L34: 0.4 | N34: 5.6 | P34: 0.3 | R34: 2.5 | T34: N | V34: [55]
B35: Technology specific data
B36: Energy storage expansion cost (M€2015/MWh) | C36: 0.418 | D36: 0.232 | F36: 0.142 | H36: 0.094 | J36: 0.075 | L36: 0.16 | N36: 0.259 | P36: 0.046 | R36: 0.176 | T36: O | V36: [44,48]
B37: Output capacity expansion cost (M€2015/MW) | C37: 0.29 | D37: 0.27 | F37: 0.16 | H37: 0.1 | J37: 0.06 | L37: 0.24 | N37: 0.51 | P37: 0.04 | R37: 0.25 | T37: P | V37: [54–56]
B38: Alternative Investment cost (M€2015/MW) | C38: 0.39 | D38: 0.33 | F38: 0.2 | H38: 0.12 | J38: 0.08 | L38: 0.28 | N38: 0.58 | P38: 0.05 | R38: 0.31 | T38: Q | V38: [41,44,48,54–56]
B39: Lifetime in total number of cycles | C39: 6000 | D39: 14000 | F39: 30000 | H39: 40000 | J39: 50000 | L39: 10000 | N39: 16000 | P39: 20000 | R39: 70000 | T39: R | V39: [3–5,14]
B40: Specific power (W/kg) | C40: 569 | D40: 700 | F40: 900 | H40: 1000 | J40: 1200 | L40: 600 | N40: 900 | P40: 1000 | R40: 2000 | T40: S | V40: [2,24]
B41: Power density (kW/m3) | C41: 708 | D41: 800 | F41: 1000 | H41: 1200 | J41: 1400 | L41: 750 | N41: 900 | P41: 1200 | R41: 2000 | T41: S | V41: [2,24]
B42: Specific energy (Wh/kg) | C42: 95 | D42: 105 | F42: 139 | H42: 174 | J42: 209 | L42: 100 | N42: 140 | P42: 150 | R42: 300 | T42: S | V42: [2,24]
B43: Energy density (kWh/m3) | C43: 118 | D43: 130 | F43: 173 | H43: 216 | J43: 260 | L43: 150 | N43: 200 | P43: 200 | R43: 400 | T43: S | V43: [2,24]
B44: ** 1 € = 1.14 US$
B52: Data Sheet Notes:
B53: A. One unit defined as a 40 feet container including LIB system and excluding power conversion system. Values for 2015-2030 are taken from Samsung SDI brochures for grid-connected LIBs from 2016 and 2018 [2,14]. This unit of 3.2MWh/9.6MW (3C) is a typical size grid scale battery. The Specific investment cost under financial data is provided for a 1MWh : 1MW (1C) battery. Cost examples of a 2MWh/8MW and a 16MWh/4MW battery are given in the section below.
B54: B. Power input/output are set to 0.5/3 times the energy capacity as it is the standard grid-connected LIBs designed for power purposes [2,14]. It is noted that the power capacity is strongly dependent on the battery type and chemistry.
B55: C. The gradual change towards lower C-rates following the transition from frequency regulation to renewable integration promotes lower C-rates. Therefore the average DC roundtrip efficiency is expected to increase slightly. The RT eff. vs. C-rate is exemplified in Figure 7 [3,51]. The AC roundtrip efficiency includes losses in the power electronics and is 2-4% lower than the DC roundtrip efficiency. The total roundtrip efficiency further includes standby losses making the total roundtrip efficiency typically ranging between 80% and 90% [21,22].
B56: D. The C-rate is 0.5 during charge and up to 6 during discharge for the Samsung SDI batteries [2,14]. The presented conversion efficiencies assume average discharge C-rates in 2015-2020 around 3 and charge C-rates around 0.5.
B57: E. Lithium-ion battery daily discharge loss. The central estimates for self-discharge of Li-ion batteries range between 0.05% and 0.20% a day in 2016 and are expected to stay flat to 2030.
B58: F. It is expected not to have any outage during lifetime of the grid-connected LIB. Only a few days during the e.g. 15 years life time is needed for service and exchanging fans and blowers for thermal management system and power conversion system. Forced outage is expected to drop with increasing robustness following the learning rate and cumulated production. Planned outage is expected to decrease after 2020 due to increased automation.
B59: G. Current state-of-the-art NMC LIB has 20 years lifetime. The NMC lifetime is expected to reach LTO lifetime by 2020 and 30 years lifetime for grid-connected LIBs in 2040 and 2050 as photovoltaic power systems have today [3,5,8,14].
B60: H. The response time is obtained from simulated response time experiments with hardware in the loop [53].
B61: I. The system specific forecasts includes rack, TMS, BMS, EMS and PCS (Figure 5). The forecast is calculated as the sum of the PCS, the battery cell, and other costs. The system specific forecast is exclusive power cables to the site and entrepreneur work for installation of the containers [44,48]. The specific investment cost is the total cost of a 1MWh : 1MW (1C) battery. Cost examples of a 2MWh/8MW and a 16MWh/4MW battery are given in the section below.
B62: J. The battery pack cost forecast is provided in Figure 8 and the related text [44].
B63: K. Power conversion cost is strongly dependent on scalability and application. The PCS cost is based on references [54–56] and reflects the necessity for high power performance and compliance to grid codes to provide ancillary services, bidirectional electricity flow and two-stage conversion, as well as the early stage of development and the fact that few manufacturers can guarantee turnkey systems. Inverter replacement is expected every 10 years. The bidirectional inverter given here has more or less the same charge and discharge capacity (MW).
B64: L. Other costs include construction costs and entrepreneur work. These costs heavily dependent on location, substrate and site access. Power cables to the site and entrepreneur work for installation of the containers are included in other costs. Therefore other costs are assumed to – roughly – correlate with the system size. Automation is expected to decrease other costs from 2030 and onwards. Estimates are aggregated from the literature [22,40,54].
B65: M. Fixed O&M is assumed to be constant, although the O&M may depend on the application [22].
B66: N. Variable O&M is assumed to be 2.1 €/MWh in 2015 with a range of 0.4 – 5.6 [55].
B67: O. Since multi-MWh LIB systems are scalar, the energy storage expansion cost is here estimated to be equal to the energy component plus the “other costs” [44,48].
B68: P. Since multi-MW LIB systems are scalar, the capacity expansion cost equals the capacity component cost [54–56].
B69: Q. The alternative investment cost in M€2015/MW is specified for a 4C, 0.25 h system as for the Laurel Mountain, West Virginia, USA grid-scale LIB storage system [41]. I.e. the alternative investment cost is 25% of the energy storage expansion cost plus the PCS cost [41,44,48,54–56].
B70: R. Cycle life specified as the number of cycles at 1C/1C to 80% state-of-health. Samsung SDI 2016 whitepaper on ESS solutions provide 15 year lifetime for current modules operating at C/2 to 3C [14]. Steady improvement in battery lifetime due to better materials and battery management is expected. Kokam ESS solutions are also rated at more than 8000-20000 cycles (80-90% DOD) based on chemistry [3]. Thus for daily full charge-discharge cycles, the batteries are designed to last for 15-50 years if supporting units are well functioning. Lifetimes are given for both graphite and LTO anode based commercial batteries from Kokam. Cycle lives are steadily increasing over last few years as reflected in 2020/2030 numbers [4,5,14].
B71: S. Specific power, power density, Specific energy and energy density is provided for discharge mode, starting with the values provided in the section “Typical characteristics and capacities”. A charge/discharge conversion factor of 12 can be derived from this section. The expected development depends on the successive R&D progress as indicated in the section “Research and development perspectives” [2,24].
B74: References
B75: [1] | C75: Leclanche. Lithium Ion Technology and Product Description, (2018). http://www.leclanche.com/technology-products/leclanche-technology/lithium-ion-cells/
B76: [2] | C76: Samsung. ESS Batteries by Samsung SDI Top Safety & Reliability Solutions, (2018). http://www.samsungsdi.com/upload/ess_brochure/201809_SamsungSDI ESS_EN.pdf
B77: [3] | C77: L. Kokam Co. Total Energy Storage Solution Provider, (2018). http://kokam.com/data/2018_Kokam_ESS_Brochure_ver_5.0.pdf
B78: [4] | C78: L. Kokam Co. Kokam Li-ion / Polymer Cell, (2017). http://kokam.com/data/Kokam_Cell_Brochure_V.4.pdf
B79: [5] | C79: StoraXe. StoraXe Industrial & Infrastructure Scalable battery storage system, (2018). https://www.ads-tec.de/fileadmin/download/doc/brochure/Datasheet_Energy_Industrial_EN.pdf
B80: [6] | C80: Fronius. Fronius Energy Package, (2018). http://www.fronius.com/en/photovoltaics/products/all-products/solutions/fronius-storage-solution/fronius-energy-package/fronius-energy-package
B81: [7] | C81: Fenecon. Fenecon Commercial 50-series Battery Module | Battery Rack, (2018). https://www.fenecon.de/en_US/page/infocenter#fenecon-industrial
B82: [8] | C82: Altairnano. 24 V 60 Ah Battery Module, (2016). https://altairnano.com/products/battery-module/
B83: [9] | C83: S. Weintraub, Electrek. Tesla Gigafactory tour roundup and tidbits: ‘This is the coolest factory in the world’, (2016). https://electrek.co/2016/07/28/tesla-gigafactory-tour-roundup-and-tidbits-this-is-the-coolest-factory-ever/
B84: [10] | C84: M. Kane, InsideEVs. BMW i3 Samsung SDI 94 Ah Battery Rated For 524,000 Miles, (2018). https://insideevs.com/lets-look-at-the-specs-of-the-samsung-sdi-94-ah-battery/
B85: [11] | C85: Qnovo. Inside the Battery of a Nissan Leaf, (2018). https://qnovo.com/inside-the-battery-of-a-nissan-leaf/
B86: [12] | C86: J.M. Tarascon, M. Armand. Issues and challenges facing rechargeable lithium batteries, Nature, 414 (2001) 359. doi:10.1038/35104644
B87: [13] | C87: Shutterstock. Tesla 2170 battery cell stock photos, (2018). https://www.shutterstock.com/search/tesla+2170+battery+cell
B88: [14] | C88: Samsung, Smart Battery Systems for Energy Storage, (2016). http://www.samsungsdi.com/upload/ess_brochure/Samsung SDI brochure_EN.pdf
B89: [15] | C89: Inside EVs. LCChem Prismatic Cell, (2018). https://insideevs.com/wp-content/uploads/2015/12/ess_cell1.jpg
B90: [16] | C90: H.C. Hesse, M. Schimpe, D. Kucevic, A. Jossen. Lithium-ion battery storage for the grid - A review of stationary battery storage system design tailored for applications in modern power grids, Energies, 10 (2017) 2107. doi:10.3390/en10122107
B91: [17] | C91: M. Schimpe, M. Naumann, N. Truong, H.C. Hesse, S. Santhanagopalan, A. Saxon, A. Jossen. Energy efficiency evaluation of a stationary lithium-ion battery container storage system via electro-thermal modeling and detailed component analysis, Appl. Energy. 210 (2018) 211. doi:10.1016/j.apenenergy.2017.10.129
B92: [18] | C92: Electropaedia. Battery Performance Characteristics - How to specify and test a battery, (2018). https://www.mpoweruk.com/performance.htm
B93: [19] | C93: L. Kokam Co. Lithium Ion Polymer Cells - High Energy High PowerㅣKokam Battery Cells, (2018). http://kokam.com/cell/
B94: [20] | C94: Sempra Renewables. Auwahi Wind, (2012). http://www.semprarenewables.com/project/auwahi-wind/
B95: [21] | C95: A.H. Fathima, K. Palanisamy. Renewable systems and energy storages for hybrid systems, Ed(s): A. Hina Fathima, et al., in Hybrid-renewable energy systems in microgrids. Woodhead Publishing (2018), pp. 162. https://doi.org/10.1016/B978-0-08-102493-5.00008-X
B96: [22] | C96: Lazard. Levelized Cost of Storage (2017)., https://www.lazard.com/perspective/levelized-cost-of-storage-2017/
B97: [23] | C97: R. Hidalgo-León et al. A survey of battery energy storage system (BESS), applications and environmental impacts in power systems, 2017 IEEE 2nd ETCM pp. 1–6. doi:10.1109/etcm.2017.8247485.
B98: [24] | C98: LG Chem. Change your energy. Change your life., (2018). http://www.lgchem.com/upload/file/product/LGChem_Catalog_Global_2018.pdf
B99: [25] | C99: Researchinterfaces. Lithium-ion batteries for large-scale grid energy storage, (2018). https://researchinterfaces.com/lithium-ion-batteries-grid-energy-storage/
B100: [26] | C100: U.S. EPA. Application of Life-Cycle Assessment to Nanoscale Technology: Lithium-ion Batteries for Electric Vehicles, United States Environ. Prot. Agency. (2013) 1–119. doi:10.1038/nchem.2085.
B101: [27] | C101: J.F. Peters, M. Baumann, B. Zimmermann, J. Braun, M. Weil. The environmental impact of Li-Ion batteries and the role of key parameters – A review, Renew. Sustain. Energy Rev. 67 (2017) 491–506. doi:10.1016/j.rser.2016.08.039
B102: [28] | C102: The Washington Post. The environmental impact of cobalt mining, (2018). https://www.washingtonpost.com/news/in-sight/wp/2018/02/28/the-cost-of-cobalt/?utm_term=.eebc6c00f0de
B103: [29] | C103: Visualcapitalist. Nickel: The Secret Driver of the Battery Revolution, (2017). http://www.visualcapitalist.com/nickel-secret-driver-battery-revolution/
B104: [30] | C104: Bloomberg. We’re Going to Need More Lithium, (2017). https://www.bloomberg.com/graphics/2017-lithium-battery-future/
B105: [31] | C105: R. Petibon, J. Xia, L. Ma, M.K.G. Bauer, K.J. Nelson, J.R. Dahn. Electrolyte System for High Voltage Li-Ion Cells, J. Electrochem. Soc. 163 (2016) A2571–A2578. doi:10.1149/2.0321613jes
B106: [32] | C106: A. Casimir, H. Zhang, O. Ogoke, J.C. Amine, J. Lu, G. Wu. Silicon-based anodes for lithium-ion batteries: Effectiveness of materials synthesis and electrode preparation, Nano Energy. 27 (2016) 359–376. doi:10.1016/j.nanoen.2016.07.023
B107: [33] | C107: M. Saulnier, A. Auclair, G. Liang, S.B. Schougaard. Manganese dissolution in lithium-ion positive electrode materials, Solid State Ionics. 294 (2016) 1–5. doi:10.1016/j.ssi.2016.06.007
B108: [34] | C108: E.-Y. Kim, B.-R. Lee, G. Yun, E.-S. Oh, H. Lee. Effects of binder content on manganese dissolution and electrochemical performances of spinel lithium manganese oxide cathodes for lithium ion batteries, Curr. Appl. Phys. 15 (2015) 429–434. doi:10.1016/j.cap.2015.01.029
B109: [35] | C109: S. Lee, E.-Y. Kim, H. Lee, E.-S. Oh. Effects of polymeric binders on electrochemical performances of spinel lithium manganese oxide cathodes in lithium ion batteries, J. Power Sources. 269 (2014) 418–423. doi:10.1016/j.jpowsour.2014.06.167
B110: [36] | C110: eeNews Power Management. Revolutionary solid state rechargeable aluminium-sulfur battery project starts, (2017). http://www.eenewspower.com/news/revolutionary-solid-state-rechargeable-aluminium-sulfur-battery-project-starts
B111: [37] | C111: Ørsted. Ørsted takes first steps into commercial energy storage, (2018). https://orsted.com/en/Media/Newsroom/News/2018/04/Orsted-takes-first-steps-into-commercial-battery-storage
B112: [38] | C112: Tesla. Addressing Peak Energy Demand with the Tesla Powerpack, (2016). https://www.tesla.com/da_DK/blog/addressing-peak-energy-demand-tesla-powerpack?redirect=no
B113: [39] | C113: Electrek. Tesla quietly brings online its massive - biggest in the world - 80 MWh Powerpack station with Southern California Edison, (2017). https://electrek.co/2017/01/23/tesla-mira-loma-powerpack-station-southern-california-edison/
B114: [40] | C114: Tesla. Tesla Powerpack to Enable Large Scale Sustainable Energy to South Australia, (2017). https://www.tesla.com/da_DK/blog/Tesla-powerpack-enable-large-scale-sustainable-energy-south-australia?redirect=no Page
B115: [41] | C115: Energy Storage Association. Frequency Regulation Services and a Firm Wind Product: AES Energy Storage Laurel Mountain Battery Energy Storage, (2018). http://energystorage.org/energy-storage/case-studies/frequency-regulation-services-and-firm-wind-product-aes-energy-storage
B116: [42] | C116: ABB. Battery energy storage system PQpluS, (2018). https://new.abb.com/high-voltage/capacitors/lv/bess-products/PQpluS
B117: [43] | C117: S. Saylors, Philip C. Kjær. Rasmus Lærke. Ancillary Services Provided from Wind Power Plant Augmented with Energy Storage, (2014). https://www.ieee-pes.org/presentations/gm2014/PESGM2014P-000718.pdf
B118: [44] | C118: Bloomberg New Energy Finance. New Energy Outlook 2018, (2018). https://bnef.turtl.co/story/neo2018.pdf?autoprint=true&teaser=true
B119: [45] | C119: CleanTechnica. $100/kWh Tesla Battery Cells This Year, $100/kWh Tesla Battery Packs In 2020|, (2018). https://cleantechnica.com/2018/06/09/100-kwh-tesla-battery-cells-this-year-100-kwh-tesla-battery-packs-in-2020/
B120: [46] | C120: Wardsauto. Two Tidbits From CES: Better Cybersecurity and Cheaper EV Batteries, (2017). https://www.wardsauto.com/ideaxchange/two-tidbits-ces
B121: [47] | C121: Visualcapitalist. China Leading the Charge for Lithium-Ion Megafactories, (2017) http://www.visualcapitalist.com/china-leading-charge-lithium-ion-megafactories/
B122: [48] | C122: International Renewable Energy Agency. IRENA Battery Storage Report, (2015). http://www.irena.org/-/media/Files/IRENA/Agency/Publication/2015/IRENA_Battery_Storage_report_2015.pdf
B123: [49] | C123: Windpower Engineering & Development. Global battery energy-storage system installed capacity will exceed 14 GW by 2020, (2016). https://www.windpowerengineering.com/business-news-projects/global-battery-energy-storage-system-installed-capacity-will-exceed-14-gw-2020/
B124: [50] | C124: International Renewable Energy Agency. Electricity Storage and Renewables : Costs and Markets To 2030, (2017). http://www.irena.org/publications/2017/Oct/Electricity-storage-and-renewables-costs-and-markets
B125: [51] | C125: Danish Technological Institute. BESS project Smart grid ready Battery Energy Storage System for future grid, (2017). https://www.energiforskning.dk/sites/energiteknologi.dk/files/slutrapporter/bess_final_report_forskel_10731.pdf
B126: [52] | C126: H. Chen, T.N. Cong, W. Yang, C. Tan, Y. Li, Y. Ding, Progress in electrical energy storage system: A critical review, Prog. Nat. Sci. 19 (2009) 291–312. doi:10.1016/j.pnsc.2008.07.014
B127: [53] | C127: D.M. Greenwood, K.Y. Lim, C. Patsios, P.F. Lyons, Y.S. Lim, P.C. Taylor, Frequency response services designed for energy storage, Appl. Energy. 203 (2017) 115–127. doi:10.1016/j.apenergy.2017.06.046
B128: [54] | C128: R. Benato, G. Bruno, F. Palone, R.M. Polito, M. Rebolini, Large-scale electrochemical energy storage in high voltage grids: Overview of the Italian experience, Energies. 10 (2017) 1-17. doi:10.3390/en10010108
B129: [55] | C129: B. Zakeri, S. Syri, Electrical energy storage systems: A comparative life cycle cost analysis, Renew. Sustain. Energy Rev. 42 (2015) 569–596. doi:10.1016/j.rser.2014.10.011
B130: [56] | C130: G. Huff, A.B. Currier, B.C. Kaun, D.M. Rastler, S.B. Chen, D.T. Bradshaw, W.D. Gauntlett, DOE/EPRI electricity storage handbook in collaboration with NRECA, (2015). https://www.sandia.gov/ess-ssl/publications/SAND2015-1002.pdf

Sheet 181 Vanadium Redox Flow Battery
H1: Back to Index
B2: 181 Vanadium Redox Flow Battery
B4: Technology | D4: Vanadium Redox Battery (VRB)
C5: 2015 | D5: 2020 | E5: 2030 | F5: 2050 | G5: Uncertainty (2020) | I5: Uncertainty | K5: Note | L5: Ref
I6: (2050)
B7: Energy/technical data | G7: Lower | H7: Upper | I7: Lower | J7: Upper
B8: Form of energy stored | C8: Electricity
B10: Application | C10: System, power- and energy-intensive
B12: Energy storage capacity for one unit (MWh) | C12: 2 | D12: 2 | E12: 2 | F12: 2 | G12: 0.4 | H12: 800 | I12: 0.4 | J12: 800 | K12: A,M | L12: [4]+[9]
B13: Output capacity for one unit (MW) | C13: 0.5 | D13: 0.5 | E13: 0.5 | F13: 0.5 | G13: 0.1 | H13: 200 | I13: 0.1 | J13: 200 | K13: A,M | L13: [4]
B14: Input capacity for one unit (MW) | C14: 0.5 | D14: 0.5 | E14: 0.5 | F14: 0.5 | G14: 0.1 | H14: 200 | I14: 0.1 | J14: 200 | K14: A,M | L14: [4]
B15: Round trip efficiency - DC (%) | C15: 78 | D15: 78 | E15: 78 | F15: 78 | G15: 62 | H15: 88 | I15: 67 | J15: 95 | K15: B | L15: [5];[22]
B16: - Charge efficiency (%) | C16: - | D16: - | E16: - | F16: - | G16: - | H16: - | I16: - | J16: -
B17: - Discharge efficiency (%) | C17: - | D17: - | E17: - | F17: - | G17: - | H17: - | I17: - | J17: -
B18: Energy losses during storage (%/day) | C18: 0 | D18: 0 | E18: 0 | F18: 0 | G18: 0 | H18: 0.2 | I18: 0 | J18: 0.2 | K18: C | L18: [4];[22]
B19: Forced outage (%) | C19: 0.5 | D19: 0.5 | E19: 0.5 | F19: 0.5 | G19: 0 | H19: 5 | I19: 0 | J19: 5 | K19: D,M | L19: [1]
B20: Planned outage (weeks per year) | C20: 0 | D20: 0 | E20: 0 | F20: 0 | G20: 0 | H20: 0 | I20: 0 | J20: 0 | K20: D,M | L20: [1]
B21: Technical lifetime (years) | C21: 20 | D21: 20 | E21: 20 | F21: 20 | G21: 6 | H21: 23 | I21: 8 | J21: 32 | L21: [4];[28]+[22]
B22: Construction time (years) | C22: 1 | D22: 1 | E22: 1 | F22: 1 | G22: 0.2 | H22: 2 | I22: 0.2 | J22: 2 | K22: E,M | L22: [9]
B24: Regulation ability
B26: Response time from idle to full-rated discharge (sec) | C26: 0.1 | D26: 0.1 | E26: 0.1 | F26: 0.1 | G26: 0.005 | H26: 2 | I26: 0.005 | J26: 2 | K26: F,G | L26: [4]+[30]
B27: Response time from full-rated charge to full-rated discharge (sec) | C27: 0.07 | D27: 0.07 | E27: 0.07 | F27: 0.07 | G27: 0.004 | H27: 1.4 | I27: 0.004 | J27: 1.4 | K27: F,G,M | L27: [1]
B29: Financial data
B30: Specific investment (M€2015 per MWh) | C30: 0.75 | D30: 0.6 | E30: 0.35 | F30: 0.33 | G30: 0.53 | H30: 1.15 | I30: 0.3 | J30: 0.58 | K30: H | L30: [22]+[27]/[19]
B31: - energy component (M€/MWh) | C31: 0.58 | D31: 0.45 | E31: 0.24 | F31: 0.22 | G31: 0.38 | H31: 0.94 | I31: 0.19 | J31: 0.44 | K31: H, I | L31: [22]+[27]
B32: - capacity component (M€/MW) | C32: 0.45 | D32: 0.41 | E32: 0.33 | F32: 0.33 | G32: 0.43 | H32: 0.48 | I32: 0.35 | J32: 0.39 | K32: H | L32: [22]+[25]+[27]/[19]
B33: - other project costs (M€/MWh) | C33: 0.06 | D33: 0.05 | E33: 0.03 | F33: 0.03 | G33: 0.04 | H33: 0.09 | I33: 0.02 | J33: 0.05 | K33: J | L33: [19]
B34: Fixed O&M (% total investment) | C34: 2 | D34: 2 | E34: 1.5 | F34: 1.5 | G34: 0.8 | H34: 4.1 | I34: 0.6 | J34: 3.1 | L34: [24]+[25]/[2]
B35: Variable O&M (€2015/MWh) | C35: 0.9 | D35: 0.9 | E35: 0.9 | F35: 0.9 | G35: 0.2 | H35: 2.8 | I35: 0.2 | J35: 2.8 | L35: [25]/[2]
B37: Technology specific data
B38: Alternative Investment cost (M€2015/MW) | C38: 3 | D38: 2.4 | E38: 1.4 | F38: 1.3 | G38: 2.1 | H38: 4.6 | I38: 1.2 | J38: 2.3 | K38: H | L38: [22]+[31]+[27]/[19]
B39: Lifetime in total number of cycles | C39: -|- | D39: -|- | E39: -|- | F39: -|- | G39: -|- | H39: -|- | I39: -|- | J39: -|- | K39: K | L39: [1]
B41: Specific power (W/kg) | C41: 2.9 | D41: 2.9 | E41: 2.9 | F41: 2.9 | G41: 1.45 | H41: 3.63 | I41: 1.45 | J41: 3.63 | K41: A,L,M | L41: [4]
B42: Power density (W/m3) | C42: 2260 | D42: 2260 | E42: 2260 | F42: 2260 | G42: 1130 | H42: 2825 | I42: 1130 | J42: 2825 | K42: A,L,M | L42: [4]
B43: Specific energy (Wh/kg) | C43: 11.8 | D43: 11.8 | E43: 11.8 | F43: 11.8 | G43: 5.9 | H43: 14.75 | I43: 5.9 | J43: 14.75 | K43: A,L,M | L43: [4]
B44: Energy density (Wh/m3) | C44: 9040 | D44: 9040 | E44: 9040 | F44: 9040 | G44: 4520 | H44: 11300 | I44: 4520 | J44: 11300 | K44: A,L,M | L44: [4]
B53: Notes:
B55: A | C55: One Uni.System unit from UniEnergy Technologies. Installation sizes vary from tens of kW to hundreds of MW.
B57: B | C57: Efficiency varies depending on use.
B58: C | C58: Energy losses depend on idle situation. If pumps are off and electrolyte not present in the reaction stack no energy loss occurs. This increases response time (see above). Self-discharge only occurs for electrolyte inside the reaction stack. This is a relatively small volume and the self-discharge will be at most 2 % over time for typical installations. Losses related to stand-by energy consumption of pumps are not included.
B59: D | C59: Some companies guarantee at least 99.5% uptime.
B60: E | C60: Depends highly on the installation.
B61: F | C61: Time is less than 100 ms for idle situation with electrolyte in reaction stack and pumps on [4]. Less the 1 s if electrolyte must first be pumped [5]. Less than 1 min if pumps are not on [5]. PCS might be limiting the response time.
B62: G | C62: Might in practice be limited by PCS.
B63: H | C63: Valid for installations with rated discharge times of 4 hours. Use equation in “Prediction of performance and cost” above to calculate for installations with a different rated discharge time.
B64: I | C64: Composed of both electrolyte etc. at 347 €/kWh and stack at 1313 €/kW [22].
B65: J | C65: Value for utility T&D installations with discharge time of 4 hours used.
B66: K | C66: Manufactures state unlimited number of cycles during technical lifetime [4], [5].
B67: L | C67: Varies with capacity to storage ratio. Is significantly lower for some manufactures.
B68: M | C68: Uncertainties are based on a qualified guess.
B73: References
B74: [1] | C74: M. Manahan, N. Jewell, D. Link, and B. Westlake, “Program on Technology Innovation: Assessment of Flow Battery Technologies for Stationary Applications,” EPRI, 2016.
B75: [2] | C75: M. Guarnieri, P. Mattavelli, G. Petrone, and G. Spagnuolo, “Vanadium Redox Flow Batteries: Potentials and Challenges of an Emerging Storage Technology,” IEEE Ind. Electron. Mag., vol. 10, no. 4, pp. 20–31, 2016.
B76: [3] | C76: M. Skyllas-Kazacos, “SECONDARY BATTERIES – FLOW SYSTEMS | Vanadium Redox-Flow Batteries,” in Encyclopedia of Electrochemical Power Sources, 2009, pp. 444–453.
B77: [4] | C77: UniEnergy Technologies, “Uni.System product data,” 2016.
B78: [5] | C78: Vionx Energy, “VNX 1000 SERIES Product data,” 2017.
B79: [6] | C79: UniEnergy Technologies, Product material: Maximizing Value Thorugh UET Energy Storage. 2015.
B80: [7] | C80: Z. Yang et al., “Electrochemical Energy Storage for Green Grid,” Chem. Rev., vol. 111, no. 5, pp. 3577–3613, May 2011.
B81: [8] | C81: Sumitomo Electric Group, REDOX FLOW BATTERY: Product material. 2016.
B82: [9] | C82: “DOE Global Energy Storage Database.” [Online]. Available: https://www.energystorageexchange.org/. [Accessed: 29-Mar-2017].
B83: [10] | C83: Sumitomo Electric Group, “Container Type Redox Flow Battery System,” 2017.
B84: [11] | C84: IEC, “Electrical Energy Storage,” 2011.
B85: [12] | C85: “Sumitomo Electric Industries, Ltd. | Press Release (2013) Selected to be Subsidized by the Governmental Program for Urgent Demonstration Project of Large-scale Energy Storage Systems.” [Online]. Available: http://global-sei.com/news/press/13/prs088_s.html. [Accessed: 30-Mar-2017].
B86: [13] | C86: J. Cho, S. Jeong, and Y. Kim, “Commercial and research battery technologies for electrical energy storage applications,” Prog. Energy Combust. Sci., vol. 48, pp. 84–101, Jun. 2015.
B87: [14] | C87: T. Biesheuvel and M. Burton, “It’s Boom Time for Vanadium, Ruthenium and Cobalt - Bloomberg,” Bloomberg Markets, 2017. [Online]. Available: https://www.bloomberg.com/news/articles/2017-08-23/obscure-metal-used-to-fight-crusaders-has-surged-67-in-a-month. [Accessed: 06-Dec-2017].
B88: [15] | C88: C. K. Charlotte Radford, Anna Xu, “GLOBAL VANADIUM WRAP: Prices rise across the board amid tight supply of V2O5 | Metal Bulletin.com,” 2017. [Online]. Available: https://www.metalbulletin.com/Article/3768052/GLOBAL-VANADIUM-WRAP-Prices-rise-across-the-board-amid-tight-supply-of-V2O5.html. [Accessed: 18-Dec-2017].
B89: [16] | C89: M. Moore, R. Counce, J. Watson, and T. Zawodzinski, “A Comparison of the Capital Costs of a Vanadium Redox-Flow Battery and a Regenerative Hydrogen-Vanadium Fuel Cell,” J. Adv. Chem. Eng., vol. 5, no. 4, pp. 5–7, 2015.
B90: [17] | C90: M. C. S. U.S. Geological Survey, “VANADIUM (Data in metric tons of vanadium content unless otherwise noted),” 2014.
B91: [18] | C91: O. Schmidt, A. Hawkes, A. Gambhir, and I. Staffell, “The future cost of electrical energy storage based on experience rates,” Nat. Energy, vol. 2, no. 8, p. 17110, Jul. 2017.
B92: [19] | C92: G. Huff et al., “DOE/EPRI 2013 electricity storage handbook in collaboration with NRECA,” Rep. SAND2013- …, no. July, p. 340, 2013.
B93: [20] | C93: L. Baumann and E. Boggasch, “Experimental assessment of hydrogen systems and vanadium-redox-flow-batteries for increasing the self-consumption of photovoltaic energy in buildings,” Int. J. Hydrogen Energy, vol. 41, no. 2, pp. 740–751, 2016.
B94: [21] | C94: O. Teller et al., “Joint EASE/EERA Recommendations for a European Energy Storage Technology Development Roadmap Towards 2030,” 2013.
B95: [22] | C95: IRENA, “Electricity storage and renewables: Costs and markets to 2030 - Cost-of-service tool. Version 1.0,” 2017.
B96: [23] | C96: G. Kear, A. A. Shah, and F. C. Walsh, “Development of the all-vanadium redox flow battery for energy storage: a review of technological, financial and policy aspects,” Int. J. Energy Res., vol. 36, no. 11, pp. 1105–1120, Sep. 2012.
B97: [24] | C97: J. E. Al Carlsson, “ETRI 2014 - Energy Technology Reference Indicator projections for 2010-2050,” 2014.
B98: [25] | C98: B. Zakeri and S. Syri, “Electrical energy storage systems: A comparative life cycle cost analysis,” Renew. Sustain. Energy Rev., vol. 42, pp. 569–596, 2015.
B99: [26] | C99: M. Skyllas-Kazacos and J. F. McCann, “Chapter 10 – Vanadium redox flow batteries (VRBs) for medium- and large-scale energy storage,” in Advances in Batteries for Medium and Large-Scale Energy Storage, 2015, pp. 329–386.
B100: [27] | C100: K.-P. Kairies, “Battery storage technology improvements and cost reductions to 2030: A Deep Dive,” Int. Renew. Energy Agency Work., 2017.
B101: [28] | C101: P. Ralon, M. Taylor, and A. Ilas, Electricity storage and renewables: costs and market to 2030, no. October. 2017.
B102: [29] | C102: R. Benato, G. Bruno, F. Palone, R. Polito, and M. Rebolini, “Large-Scale Electrochemical Energy Storage in High Voltage Grids: Overview of the Italian Experience,” Energies, vol. 10, no. 1, p. 108, Jan. 2017.
B103: [30] | C103: L. Sigrist and E. Peirano, “E-Highway2050: Battery Storage Technology Assessment,” in WP3 workshop April 15th, 2014.
B104: [31] | C104: I. Renewable Energy Agency, “IRENA-IEA-ETSAP Technology Brief 5: Electricity Storage,” 2012.

Sheet 182 Na-S Battery
H1: Back to Index
B2: 182 Na-S battery
B3: Technology | D3: NaS battery
C4: 2015 | D4: 2020 | E4: 2030 | F4: 2050 | G4: Uncertainty (2020) | I4: Uncertainty | K4: Note | L4: Ref
I5: 2050
B6: Energy/technical data | G6: Lower | H6: Upper | I6: Lower | J6: Upper
B7: Form of energy stored | C7: Electricity
B9: Application | C9: System, power- and energy-intensive
B11: Energy storage capacity for one unit (MWh) | C11: 250 | D11: 300 | E11: 300 | F11: 300 | G11: 30 | H11: 3000 | I11: 30 | J11: 3000 | K11: A B,Q | L11: [9]
B13: Output capacity for one unit (MW) | C13: 35 | D13: 50 | E13: 50 | F13: 50 | G13: 5 | H13: 500 | I13: 5 | J13: 500 | K13: A,B,Q | L13: [9]
B15: Input capacity for one unit (MW) | C15: 35 | D15: 50 | E15: 50 | F15: 50 | G15: 5 | H15: 500 | I15: 5 | J15: 500 | K15: A,B,Q | L15: [9]
B17: Round trip efficiency - DC (%) | C17: 83 | D17: 83 | E17: 85 | F17: 85 | G17: 71 | H17: 92 | I17: 74 | J17: 96 | K17: C | L17: [9];[26]
B18: - Charge efficiency (%) | C18: - | D18: - | E18: - | F18: - | G18: - | H18: - | I18: - | J18: -
B19: - Discharge efficiency (%) | C19: - | D19: - | E19: - | F19: - | G19: - | H19: - | I19: - | J19: -
B20: Energy losses during storage (%/day) | C20: 0 | D20: 0 | E20: 0 | F20: 0 | G20: 0 | H20: 1 | I20: 0 | J20: 1 | K20: D,Q | L20: [11]/[30]/[26]
B21: Forced outage (%) | C21: 0 | D21: 0 | E21: 0 | F21: 0 | G21: 0 | H21: 2 | I21: 0 | J21: 2 | K21: E,Q | L21: [13]
B22: Planned outage (weeks per year) | C22: 0 | D22: 0 | E22: 0 | F22: 0 | G22: 0 | H22: 0 | I22: 0 | J22: 0 | K22: F,Q | L22: [13]
B23: Technical lifetime (years) | C23: 15 | D23: 19 | E23: 24 | F23: 24 | G23: 10 | H23: 28 | I23: 14 | J23: 36 | K23: G | L23: [13];[25]+[27]
B24: Construction time (years) | C24: 0.5 | D24: 0.5 | E24: 0.5 | F24: 0.5 | G24: 0.2 | H24: 2 | I24: 0.2 | J24: 2 | K24: Q | L24: [1]
B26: Regulation ability
B28: Response time from idle to full-rated discharge (sec) | C28: 0.001 | D28: 0.001 | E28: 0.001 | F28: 0.001 | G28: 0.001 | H28: 0.02 | I28: 0.001 | J28: 0.02 | K28: H | L28: [10]+[28]
B29: Response time from full-rated charge to full-rated discharge (sec) | C29: 0.05 | D29: 0.05 | E29: 0.05 | F29: 0.05 | G29: 0.001 | H29: 0.05 | I29: 0.001 | J29: 0.05 | K29: H,I,Q | L29: [9]
B31: Financial data
B32: Specific investment (M€2015 per MWh) | C32: 0.46 | D32: 0.37 | E32: 0.23 | F32: 0.2 | G32: 0.25 | H32: 0.73 | I32: 0.13 | J32: 0.39 | K32: G | L32: [22];[25]+[26]
B33: - energy component (M€/MWh) | C33: 0.31 | D33: 0.25 | E33: 0.14 | F33: 0.11 | G33: 0.18 | H33: 0.5 | I33: 0.08 | J33: 0.23 | K33: G, J | L33: [22]+[26]
B34: - capacity component (M€/MW) | C34: 0.63 | D34: 0.41 | E34: 0.33 | F34: 0.33 | G34: 0.22 | H34: 0.78 | I34: 0.18 | J34: 0.64 | K34: G, K | L34: [22]+[26]
B35: - other project costs (M€/MWh) | C35: 0.06 | D35: 0.05 | E35: 0.03 | F35: 0.03 | G35: 0.04 | H35: 0.1 | I35: 0.02 | J35: 0.05 | K35: G | L35: [22]+[26]
B36: Fixed O&M (% total investment) | C36: 1.5 | D36: 1.5 | E36: 1.5 | F36: 1.5 | G36: 0.8 | H36: 7.2 | I36: 0.8 | J36: 7.2 | K36: G,L,M | L36: [23];[24]
B37: Variable O&M (€2015/MWh) | C37: 1.8 | D37: 1.8 | E37: 1.8 | F37: 1.8 | G37: 0.3 | H37: 5.6 | I37: 0.3 | J37: 5.6 | K37: G | L37: [24]+[23]
B39: Technology specific data
B40: Alternative Investment cost (M€2015/MW) | C40: 3.3 | D40: 2.2 | E40: 1.4 | F40: 1.2 | G40: 1.5 | H40: 4.4 | I40: 0.8 | J40: 2.3 | K40: G | L40: [22];[25]+[26]
B41: Lifetime in total number of cycles | C41: 4500 | D41: 5600 | E41: 7500 | F41: 7500 | G41: 1100 | H41: 11200 | I41: 1500 | J41: 15000 | K41: N, G | L41: [9];[25]+[27]
B43: Specific power (W/kg) | C43: 9.3 | D43: 9.3 | E43: 9.3 | F43: 9.3 | G43: 6.98 | H43: 11.63 | I43: 6.98 | J43: 11.63 | K43: O,P,Q | L43: [10]
B44: Power density (W/m3) | C44: 4300 | D44: 4300 | E44: 4300 | F44: 4.3 | G44: 3225 | H44: 5375 | I44: 3225 | J44: 5375 | K44: O,P,Q | L44: [10]
B45: Specific energy (Wh/kg) | C45: 56 | D45: 56 | E45: 56 | F45: 56 | G45: 42 | H45: 70 | I45: 42 | J45: 70 | K45: O,P,Q | L45: [10]
B46: Energy density (Wh/m3) | C46: 26000 | D46: 26000 | E46: 26000 | F46: 26000 | G46: 19500 | H46: 32500 | I46: 19500 | J46: 32500 | K46: O,P,Q
B55: Notes:
B57: A | C57: Specific Italian installation from 2015 used here as example. Assuming installations similar to Buzen City discussed above to become standard in the future.
B58: B | C58: Highly modular technology type with near linear scaling between total cost and installation size. Power and storage capacity cannot be varied independently.
B59: C | C59: Grid size unit including balancing and auxiliary losses. Excluding converters. Assumes no improvement between 2030 and 2050.
B60: D | C60: Ohmic losses maintain the temperature of the battery during operation. Losses are thus included in round trip efficiency [7]. No electrical self-discharge. If idle the heat loss is as much as 1 % of storage capacity per hour but highly variational. IRENA reports as “worst” value og 1.0 % [26]
B61: E | C61: Forced outage is minimal. Only reported case is a 2011 fire incident [9].
B62: F | C62: On the order of 1 h per year.
B64: G | C64: Assumptions for development and uncertainty discussed above in “Prediction of performance” and “Uncertainty”.
B65: H | C65: Due to absence of predictions in literature, no development is assumed as an estimate.
B66: I | C66: Measurement. Possibly limited by PCS.
B67: J | C67: Includes “Batteries” from reference [22] for 2015 values.
B68: K | C68: Includes “PCS-SCI”, “Auxiliary equipment”, and “Switching and actuating equipment” from reference [22] for 2015 values.
B69: L | C69: Highly uncertain. Reported in range 2000 to 17300 €2015/MW/year [24]
B70: M | C70: Does not include replacement costs. The batteries do not need replacement within lifetime [13],[10].
B71: N | C71: See Figure 5.
B72: O | C72: Data for standard NGK container unit.
B73: P | C73: Not the technological maximum values, i.e., the density of single cells, but the specifications for a full market-standard commercial product.
B74: Q | C74: Uncertainties are based on a qualified guess.
B80: References
B81: [1] | C81: NGK Insulators LTD, “Case Studies.” pp. 1–13, 2016.
B82: [2] | C82: “DOE Global Energy Storage Database.” [Online]. Available: https://www.energystorageexchange.org/. [Accessed: 29-Mar-2017].
B83: [3] | C83: IEC, “Electrical Energy Storage,” 2011.
B84: [4] | C84: C.-H. Dustmann and A. Bito, “SECONDARY BATTERIES – HIGH TEMPERATURE SYSTEMS | Safety,” in Encyclopedia of Electrochemical Power Sources, 2009, pp. 324–333.
B85: [5] | C85: B. Dunn, H. Kamath, and J.-M. Tarascon, “Electrical Energy Storage for the Grid: A Battery of Choices,” Science (80-. )., vol. 334, no. 6058, pp. 928–935, 2011.
B86: [6] | C86: J. Cho, S. Jeong, and Y. Kim, “Commercial and research battery technologies for electrical energy storage applications,” Prog. Energy Combust. Sci., vol. 48, pp. 84–101, Jun. 2015.
B87: [7] | C87: J. Garche and C. K. Dyer, Encyclopedia of electrochemical power sources. Academic Press, 2009.
B88: [8] | C88: R. Holze, “SECONDARY BATTERIES – HIGH TEMPERATURE SYSTEMS: Sodium-Sulfur,” in Encyclopedia of Electrochemical Power Systems, vol. 200, 2009, pp. 302–311.
B89: [9] | C89: M. Andriollo et al., “Energy intensive electrochemical storage in Italy: 34.8 MW sodium-sulphur secondary cells,” J. Energy Storage, vol. 5, pp. 146–155, Feb. 2016.
B90: [10] | C90: NGK Insulators LTD, “Structure of NAS Energy Storage System,” 2016. [Online]. Available: https://www.ngk.co.jp/nas/specs/.
B91: [11] | C91: H. Chen, T. N. Cong, W. Yang, C. Tan, Y. Li, and Y. Ding, “Progress in electrical energy storage system: A critical review,” Prog. Nat. Sci., vol. 19, no. 3, pp. 291–312, 2009.
B92: [12] | C92: NGK Insulators LTD, “The World’s Largest NAS Battery Installation Commences Operation Short Installation Period Achieved through Containerized, Compact Format,” 2016. [Online]. Available: http://www.ngk.co.jp/english/news/2016/0303.html.
B93: [13] | C93: G. Huff et al., “DOE/EPRI 2013 electricity storage handbook in collaboration with NRECA,” Rep. SAND2013- …, no. July, p. 340, 2013.
B94: [14] | C94: NGK Insulators LTD, “Comparison of Battery Technologies | Why NAS? | NAS.” [Online]. Available: https://www.ngk.co.jp/nas/why/comparison.html. [Accessed: 13-Sep-2017].
B95: [15] | C95: O. Teller et al., “Joint EASE/EERA Recommendations for a European Energy Storage Technology Development Roadmap Towards 2030,” 2013.
B96: [16] | C96: Z. Wen, Y. Hu, X. Wu, J. Han, and Z. Gu, “Main Challenges for High Performance NAS Battery: Materials and Interfaces,” Adv. Funct. Mater., vol. 23, no. 8, pp. 1005–1018, Feb. 2013.
B97: [17] | C97: G. Kim, Y.-C. Park, Y. Lee, N. Cho, C.-S. Kim, and K. Jung, “The effect of cathode felt geometries on electrochemical characteristics of sodium sulfur (NaS) cells: Planar vs. tubular,” J. Power Sources, vol. 325, pp. 238–245, Sep. 2016.
B98: [18] | C98: S. I. Kim, W. Il Park, K. Jung, and C.-S. Kim, “An innovative electronically-conducting matrix of the cathode for sodium sulfur battery,” J. Power Sources, vol. 320, pp. 37–42, Jul. 2016.
B99: [19] | C99: K. . Ahlbrecht, C. Bucharsky, M. Holzapfel, J. Tübke, and M. J. Hoffmann, “Investigation of the wetting behavior of Na and Na alloys on uncoated and coated Na-β”-alumina at temperatures below 150 °C,” Ionics (Kiel)., pp. 1–9, Mar. 2017.
B100: [20] | C100: X. Yu and A. Manthiram, “Ambient-Temperature Sodium-Sulfur Batteries with a Sodiated Nafion Membrane and a Carbon Nanofiber-Activated Carbon Composite Electrode,” Adv. Energy Mater., vol. 5, no. 12, pp. 1–6, 2015.
B101: [21] | C101: X. Yu and A. Manthiram, “Performance Enhancement and Mechanistic Studies of Room-Temperature Sodium–Sulfur Batteries with a Carbon-Coated Functional Nafion Separator and a Na 2 S/Activated Carbon Nanofiber Cathode,” Chem. Mater., vol. 28, no. 3, pp. 896–905, Feb. 2016.
B102: [22] | C102: R. Benato, G. Bruno, F. Palone, R. Polito, and M. Rebolini, “Large-Scale Electrochemical Energy Storage in High Voltage Grids: Overview of the Italian Experience,” Energies, vol. 10, no. 1, p. 108, Jan. 2017.
B103: [23] | C103: J. E. Al Carlsson, “ETRI 2014 - Energy Technology Reference Indicator projections for 2010-2050,” 2014.
B104: [24] | C104: B. Zakeri and S. Syri, “Electrical energy storage systems: A comparative life cycle cost analysis,” Renew. Sustain. Energy Rev., vol. 42, pp. 569–596, 2015.
B105: [25] | C105: K.-P. Kairies, “Battery storage technology improvements and cost reductions to 2030: A Deep Dive,” Int. Renew. Energy Agency Work., 2017.
B106: [26] | C106: IRENA, “Electricity storage and renewables: Costs and markets to 2030 - Cost-of-service tool. Version 1.0,” 2017.
B107: [27] | C107: P. Ralon, M. Taylor, and A. Ilas, Electricity storage and renewables: costs and market to 2030, no. October. 2017.
B108: [28] | C108: L. Sigrist and E. Peirano, “E-Highway2050: Battery Storage Technology Assessment,” in WP3 workshop April 15th, 2014.
B109: [29] | C109: R. Benato et al., “Sodium nickel chloride battery technology for large-scale stationary storage in the high voltage network,” J. Power Sources, vol. 293, pp. 127–136, 2015.
B110: [30] | C110: G. L. Soloveichik, “Battery Technologies for Large-Scale Stationary Energy Storage,” Annu. Rev. Chem. Biomol. Eng, vol. 2, pp. 503–27, 2011.

Sheet 183 Na-NiCl2 Battery
H1: Back to Index
B3: 183 Na-NiCl2 Battery
B5: Technology | C5: Na-NiCl2 battery
C6: 2015 | D6: 2020 | E6: 2030 | F6: 2050 | G6: Uncertainty (2020) | I6: Uncertainty | K6: Note | L6: Ref
I7: -2050
B8: Energy/technical data | G8: Lower | H8: Upper | I8: Lower | J8: Upper
B9: Form of energy stored | C9: Electricity
B11: Application | C11: System, power- and energy-intensive
B13: Energy storage capacity for one unit (MWh) | C13: 4.43 | D13: 4.15 | E13: 4.15 | F13: 4.15 | G13: 3.11 | H13: 5.19 | I13: 3.11 | J13: 5.19 | K13: A,B,P | L13: [12]+[11]
B14: Output capacity for one unit (MW) | C14: 1.13 | D14: 1.2 | E14: 1.2 | F14: 1.2 | G14: 0.9 | H14: 1.5 | I14: 0.9 | J14: 1.5 | K14: A,B,P | L14: [12]+[11]
B15: Input capacity for one unit (MW) | C15: 0.42 | D15: 0.45 | E15: 0.45 | F15: 0.45 | G15: 0.34 | H15: 0.56 | I15: 0.34 | J15: 0.56 | K15: C,P | L15: [34]+[8]
B16: Round trip efficiency DC(%) | C16: 87 | D16: 87 | E16: 87 | F16: 87 | G16: 81 | H16: 93 | I16: 83 | J16: 95 | K16: D | L16: [4]+[7]; [31]
B17: - Charge efficiency (%) | C17: - | D17: - | E17: - | F17: - | G17: - | H17: - | I17: - | J17: -
B18: - Discharge efficiency (%) | C18: - | D18: - | E18: - | F18: - | G18: - | H18: - | I18: - | J18: -
B19: Energy losses during storage (%/day) | C19: 0 | D19: 0 | E19: 0 | F19: 0 | G19: 0 | H19: 15 | I19: 0 | J19: 15 | K19: E,P | L19: [35]+[5];[31]
B20: Forced outage (%) | C20: 0 | D20: 0 | E20: 0 | F20: 0 | G20: 0 | H20: 2 | I20: 0 | J20: 2 | K20: F,P | L20: [8]
B21: Planned outage (weeks per year) | C21: 0 | D21: 0 | E21: 0 | F21: 0 | G21: 0 | H21: 0 | I21: 0 | J21: 0 | K21: F,P | L21: [8]
B22: Technical lifetime (years) | C22: 15 | D22: 17 | E22: 23 | F22: 23 | G22: 9 | H22: 25 | I22: 12 | J22: 33 | L22: [28]+[8];[30]+[32]+[31]
B23: Construction time (years) | C23: 0.5 | D23: 0.5 | E23: 0.5 | F23: 0.5 | G23: 0.2 | H23: 2 | I23: 0.2 | J23: 2 | K23: G,P | L23: [11]
B26: Regulation ability
B28: Response time from idle to full-rated discharge (sec) | C28: 0.02 | D28: 0.02 | E28: 0.02 | F28: 0.02 | G28: 0.001 | H28: 0.02 | I28: 0.001 | J28: 0.02 | L28: [10]/[4]+[33]
B29: Response time from full-rated charge to full-rated discharge (sec) | C29: 0.5 | D29: 0.5 | E29: 0.5 | F29: 0.5 | G29: 0.001 | H29: 0.5 | I29: 0.001 | J29: 0.5 | K29: H,P | L29: [4]
B31: Financial data
B32: Specific investment (M€2015 per MWh) | C32: 1 | D32: 0.42 | E32: 0.26 | F32: 0.23 | G32: 0.32 | H32: 0.53 | I32: 0.18 | J32: 0.3 | K32: I, J | L32: [12]+[28]; [30]+[31]
B33: - energy component (M€/MWh) | C33: 0.76 | D33: 0.26 | E33: 0.14 | F33: 0.11 | G33: 0.21 | H33: 0.32 | I33: 0.09 | J33: 0.14 | K33: K | L33: [12]; [31]
B34: - capacity component (M€/MW) | C34: 0.48 | D34: 0.41 | E34: 0.33 | F34: 0.33 | G34: 0.3 | H34: 0.58 | I34: 0.25 | J34: 0.47 | K34: L | L34: [12]; [31]
B35: - other project costs (M€/MWh) | C35: 0.08 | D35: 0.03 | E35: 0.02 | F35: 0.02 | G35: 0.03 | H35: 0.04 | I35: 0.01 | J35: 0.02 | L35: [12]
B36: Fixed O&M (% total investment) | C36: 1.5 | D36: 1.5 | E36: 1.5 | F36: 1.5 | G36: 0.9 | H36: 2 | I36: 0.9 | J36: 2 | K36: M | L36: [29]+[28]+[27]
B37: Variable O&M (€2015/MWh) | C37: 0.6 | D37: 0.6 | E37: 0.6 | F37: 0.6 | G37: 0.4 | H37: 2.1 | I37: 0.4 | J37: 2.1 | K37: N | L37: [29]
B39: Technology specific data
B40: Alternative Investment cost (M€2015/MW) | C40: 3 | D40: 1.4 | E40: 0.9 | F40: 0.8 | G40: 1.1 | H40: 1.8 | I40: 0.6 | J40: 1 | K40: I | L40: [12]+[28]
B41: Lifetime in total number of cycles | C41: 4500 | D41: 4500 | E41: 4500 | F41: 4500 | G41: 1500 | H41: 11300 | I41: 1500 | J41: 11300 | K41: O | L41: [4]+[8];[30]+[32]
B43: Specific power (W/kg) | C43: 16 | D43: 16 | E43: 16 | F43: 16 | G43: 12 | H43: 20 | I43: 12 | J43: 20 | K43: O,P | L43: [8]
B44: Power density (W/m3) | C44: 9350 | D44: 9350 | E44: 9350 | F44: 9350 | G44: 7012 | H44: 11687 | I44: 7012 | J44: 11687 | K44: O,P | L44: [8]
B45: Specific energy (Wh/kg) | C45: 56 | D45: 56 | E45: 56 | F45: 56 | G45: 42 | H45: 70 | I45: 42 | J45: 70 | K45: O,P | L45: [3]
B46: Energy density (Wh/m3) | C46: 32700 | D46: 32700 | E46: 32700 | F46: 32700 | G46: 24525 | H46: 40875 | I46: 24525 | J46: 40875 | K46: O,P | L46: [3]
B55: A. Italian batteries (Codrongianos (Sardinia) and Ciminna (Sicily)) used as standard.
B56: B. Highly modular technology type with near linear scaling between total cost and installation size. Power and storage capacity cannot be varied independently.
B57: C. Can fast recharge with rate identical to discharge rate. Standard charge/discharge time is 8/3 h.
B58: D. Efficiency varies depending on use. Loss due to balance of system is approximately 2 % higher than for Li-ion batteries with similar PCS equipment [7]
B59: E. During intended continuous operation, Ohmic losses maintain the temperature of the battery. Losses are thus included in round trip efficiency. No electrical self-discharge. Heat losses during idle periods on the order of 0.5 %/h discussed above. IRENA finds self-dischage per day to vary between 0.1 % and 15 % depending on unit and use [31]
B60: F. Highly reliable and with no downtime required for maintenance during lifetime according to manufacturer.
B61: G. Can be down to 2 months.
B62: H. Measurement. Possibly limited by PCS.
B63: I. For 2015, the specific storage to power capacity ratio is set to the average value for Italian “Terna Storage Lab” batteries. For future installations, the 4150 kWh and 1200 kW system is assumed.
B64: J. Development rates from IRENA are used for prediction of future cost [30]
B65: K. Includes “Batteries” from reference [12]
B66: L. Includes “PCS-SCI”, “Transformer”, “Auxiliary equipment”, “Switching and actuating equipment”, and “System Controls & Instrumentation (SCI)” from reference [12].
B67: M. Assumed similar to Na-S batteries in good agreement with data from EPRI [28]
B68: N. Highly uncertain. Average value given. Reported in range 0.38 to 2.1 [29]
B69: O. Data for Energy Spring 164 system from FZSoNick. Irena do not expected improvements on cell level. Improvements on installation level might occur [32]
B70: P. Uncertainties are based on a qualified guess.
B73: References
B74: [1] | C74: J. L. Sudworth and R. C. Galloway, “SECONDARY BATTERIES – HIGH TEMPERATURE SYSTEMS | Sodium–Nickel Chloride,” in Encyclopedia of Electrochemical Power Sources, 2009, pp. 312–323.
B75: [2] | C75: Z. Yang et al., “Electrochemical Energy Storage for Green Grid,” Chem. Rev., vol. 111, no. 5, pp. 3577–3613, May 2011.
B76: [3] | C76: X. Lu, G. Li, J. Y. Kim, J. P. Lemmon, V. L. Sprenkle, and Z. Yang, “A novel low-cost sodium–zinc chloride battery,” Energy Environ. Sci., vol. 6, no. 6, p. 1837, 2013.
B77: [4] | C77: R. Benato et al., “Sodium nickel chloride battery technology for large-scale stationary storage in the high voltage network,” J. Power Sources, vol. 293, pp. 127–136, 2015.
B78: [5] | C78: G. L. Soloveichik, “Battery Technologies for Large-Scale Stationary Energy Storage,” Annu. Rev. Chem. Biomol. Eng, vol. 2, pp. 503–27, 2011.
B79: [6] | C79: B. Parkhideh, “Project : Storage Technologies for Hybrid Electric Buses - Subject : ZEBRA Battery,” 2006.
B80: [7] | C80: M. Pietrucci, “Progetti Pilota Power Intensive: Descrizione degli impianti e delle tecnologie,” 2017.
B81: [8] | C81: FZSoNick, “DATASHEETS,” 2017. [Online]. Available: http://www.fzsonick.com/en/emea/energy-storage/prodotti/spring,-mod-164,-324.aspx.
B82: [9] | C82: M. Hosseinifar and A. Petric, “Effect of High Charge Rate on Cycle Life of ZEBRA (Na/NiCl 2 ) Cells,” J. Electrochem. Soc., vol. 163, no. 7, pp. A1226–A1231, 2016.
B83: [10] | C83: T. V Rachel Carnegie Douglas Gotham David Nderitu Paul Preckel, “Utility Scale Energy Storage Systems,” 2013.
B84: [11] | C84: “DOE Global Energy Storage Database.” [Online]. Available: https://www.energystorageexchange.org/. [Accessed: 29-Mar-2017].
B85: [12] | C85: R. Benato, G. Bruno, F. Palone, R. Polito, and M. Rebolini, “Large-Scale Electrochemical Energy Storage in High Voltage Grids: Overview of the Italian Experience,” Energies, vol. 10, no. 1, p. 108, Jan. 2017.
B86: [13] | C86: NGK Insulators LTD, “Case Studies.” pp. 1–13, 2016.
B87: [14] | C87: NGK Insulators LTD, “The World’s Largest NAS Battery Installation Commences Operation Short Installation Period Achieved through Containerized, Compact Format,” 2016. [Online]. Available: http://www.ngk.co.jp/english/news/2016/0303.html.
B88: [15] | C88: M. Andriollo et al., “Energy intensive electrochemical storage in Italy: 34.8 MW sodium-sulphur secondary cells,” J. Energy Storage, vol. 5, pp. 146–155, Feb. 2016.
B89: [16] | C89: NGK Insulators LTD, “Structure of NAS Energy Storage System,” 2016. [Online]. Available: https://www.ngk.co.jp/nas/specs/.
B90: [17] | C90: K. Bradbury, “Energy Storage Technology Review,” A Br. Introd. to Batter., no. September, pp. 1–33, 2010.
B91: [18] | C91: IEC, “Electrical Energy Storage,” 2011.
B92: [19] | C92: A. Colthorpe, “NGK’s NAS sodium sulfur grid-scale batteries in depth E,” Energy Storage News, 2017.
B93: [20] | C93: C.-H. Dustmann and A. Bito, “SECONDARY BATTERIES – HIGH TEMPERATURE SYSTEMS | Safety,” in Encyclopedia of Electrochemical Power Sources, 2009, pp. 324–333.
B94: [21] | C94: R. C. Galloway, -Mes-Dea Sa, and C.-H. Dustmann, “ZEBRA Battery -Material Cost Availability and Recycling,” vol. 1519, 2003.
B95: [22] | C95: H.-J. Chang, N. L. Canfield, K. Jung, V. L. Sprenkle, and G. Li, “Advanced Na-NiCl 2 Battery Using Nickel-Coated Graphite with Core− Shell Microarchitecture.”
B96: [23] | C96: Fred Lambert, “Breakdown of raw materials in Tesla’s batteries and possible bottlenecks | Electrek,” Electrek, 2016. [Online]. Available: https://electrek.co/2016/11/01/breakdown-raw-materials-tesla-batteries-possible-bottleneck/. [Accessed: 12-Sep-2017].
B97: [24] | C97: S. Longo, V. Antonucci, M. Cellura, and M. Ferraro, “Life cycle assessment of storage systems: the case study of a sodium/nickel chloride battery,” J. Clean. Prod., vol. 85, pp. 337–346, 2014.
B98: [25] | C98: O. Teller et al., “Joint EASE/EERA Recommendations for a European Energy Storage Technology Development Roadmap Towards 2030,” 2013.
B99: [26] | C99: X. Lu et al., “Liquid-metal electrode to enable ultra-low temperature sodium–beta alumina batteries for renewable energy storage,” Nat. Commun., vol. 5, pp. 5884–5901, Aug. 2014.
B100: [27] | C100: J. E. Al Carlsson, “ETRI 2014 - Energy Technology Reference Indicator projections for 2010-2050,” 2014.
B101: [28] | C101: G. Huff et al., “DOE/EPRI 2013 electricity storage handbook in collaboration with NRECA,” Rep. SAND2013- …, no. July, p. 340, 2013.
B102: [29] | C102: B. Zakeri and S. Syri, “Electrical energy storage systems: A comparative life cycle cost analysis,” Renew. Sustain. Energy Rev., vol. 42, pp. 569–596, 2015.
B103: [30] | C103: K.-P. Kairies, “Battery storage technology improvements and cost reductions to 2030: A Deep Dive,” Int. Renew. Energy Agency Work., 2017.
B104: [31] | C104: IRENA, “Electricity storage and renewables: Costs and markets to 2030 - Cost-of-service tool. Version 1.0,” 2017.
B105: [32] | C105: P. Ralon, M. Taylor, and A. Ilas, Electricity storage and renewables: costs and market to 2030, no. October. 2017.
B106: [33] | C106: L. Sigrist and E. Peirano, “E-Highway2050: Battery Storage Technology Assessment,” in WP3 workshop April 15th, 2014.
B107: [34] | C107: J. Garche and C. K. Dyer, Encyclopedia of electrochemical power sources. Academic Press, 2009.
B108: [35] | C108: H. Chen, T. N. Cong, W. Yang, C. Tan, Y. Li, and Y. Ding, “Progress in electrical energy storage system: A critical review,” Prog. Nat. Sci., vol. 19, no. 3, pp. 291–312, 2009.
